Workbook

Sheet Profit & Loss (hidden)
A1: ='Data Sheet'!B1 -> BHARAT RASAYAN LTD | H1: =UPDATE ->  | M1: SCREENER.IN
A3: Narration | B3: ='Data Sheet'!B16 -> 2009-03-31 | C3: ='Data Sheet'!C16 -> 2010-03-31 | D3: ='Data Sheet'!D16 -> 2011-03-31 | E3: ='Data Sheet'!E16 -> 2012-03-31 | F3: ='Data Sheet'!F16 -> 2013-03-31 | G3: ='Data Sheet'!G16 -> 2014-03-31 | H3: ='Data Sheet'!H16 -> 2015-03-31 | I3: ='Data Sheet'!I16 -> 2016-03-31 | J3: ='Data Sheet'!J16 -> 2017-03-31 | K3: ='Data Sheet'!K16 -> 2018-03-31 | L3: Trailing | M3: Best Case | N3: Worst Case
A4: Sales | B4: ='Data Sheet'!B17 -> 102.94 | C4: ='Data Sheet'!C17 -> 99.22 | D4: ='Data Sheet'!D17 -> 93.63 | E4: ='Data Sheet'!E17 -> 141.95 | F4: ='Data Sheet'!F17 -> 185.19 | G4: ='Data Sheet'!G17 -> 360.28 | H4: ='Data Sheet'!H17 -> 437.69 | I4: ='Data Sheet'!I17 -> 451.21 | J4: ='Data Sheet'!J17 -> 618.5 | K4: ='Data Sheet'!K17 -> 792.33 | L4: =SUM(Quarters!H4:K4) -> 992.18 | M4: =$K4+M23*K4 -> 1015.015083 | N4: =$K4+N23*L4 -> 1009.365282
A5: Expenses | B5: =SUM('Data Sheet'!B18,'Data Sheet'!B20:B24, -1*'Data Sheet'!B19) -> 96.57 | C5: =SUM('Data Sheet'!C18,'Data Sheet'!C20:C24, -1*'Data Sheet'!C19) -> 92.81 | D5: =SUM('Data Sheet'!D18,'Data Sheet'!D20:D24, -1*'Data Sheet'!D19) -> 87.08 | E5: =SUM('Data Sheet'!E18,'Data Sheet'!E20:E24, -1*'Data Sheet'!E19) -> 125.26 | F5: =SUM('Data Sheet'!F18,'Data Sheet'!F20:F24, -1*'Data Sheet'!F19) -> 159.46 | G5: =SUM('Data Sheet'!G18,'Data Sheet'!G20:G24, -1*'Data Sheet'!G19) -> 296.52 | H5: =SUM('Data Sheet'!H18,'Data Sheet'!H20:H24, -1*'Data Sheet'!H19) -> 355.29 | I5: =SUM('Data Sheet'!I18,'Data Sheet'!I20:I24, -1*'Data Sheet'!I19) -> 370.04 | J5: =SUM('Data Sheet'!J18,'Data Sheet'!J20:J24, -1*'Data Sheet'!J19) -> 507.87 | K5: =SUM('Data Sheet'!K18,'Data Sheet'!K20:K24, -1*'Data Sheet'!K19) -> 638.92 | L5: =SUM(Quarters!H5:K5) -> 805.08 | M5: =M4-M6 -> 823.6089652 | N5: 839.3042617
A6: Operating Profit | B6: =B4-B5 -> 6.37 | C6: =C4-C5 -> 6.41 | D6: 6.55 | E6: 16.69 | F6: 25.73 | G6: 63.76 | H6: 82.4 | I6: 81.17 | J6: 110.63 | K6: 153.41 | L6: =SUM(Quarters!H6:K6) -> 187.1 | M6: =M4*M24 -> 191.4061179 | N6: =N4*N24 -> 170.0610199
A7: Other Income | B7: ='Data Sheet'!B25 -> 4.12 | C7: ='Data Sheet'!C25 -> 3.65 | D7: ='Data Sheet'!D25 -> 3.56 | E7: ='Data Sheet'!E25 -> -0.29 | F7: ='Data Sheet'!F25 -> 0.18 | G7: ='Data Sheet'!G25 -> 0.64 | H7: ='Data Sheet'!H25 -> 0.86 | I7: ='Data Sheet'!I25 -> 0.6 | J7: ='Data Sheet'!J25 -> 1.96 | K7: ='Data Sheet'!K25 -> 9.79 | L7: =SUM(Quarters!H7:K7) -> 0.75 | M7: 0 | N7: 0
A8: Depreciation | B8: ='Data Sheet'!B26 -> 0.93 | C8: ='Data Sheet'!C26 -> 0.88 | D8: ='Data Sheet'!D26 -> 1.81 | E8: ='Data Sheet'!E26 -> 1.62 | F8: ='Data Sheet'!F26 -> 6.88 | G8: ='Data Sheet'!G26 -> 17.83 | H8: ='Data Sheet'!H26 -> 17.73 | I8: ='Data Sheet'!I26 -> 17.03 | J8: ='Data Sheet'!J26 -> 16.43 | K8: ='Data Sheet'!K26 -> 16.42 | L8: =SUM(Quarters!H8:K8) -> 16.89 | M8: =+$L8 -> 16.89 | N8: =+$L8 -> 16.89
A9: Interest | B9: ='Data Sheet'!B27 -> 0.83 | C9: ='Data Sheet'!C27 -> 0.49 | D9: ='Data Sheet'!D27 -> 0.27 | E9: ='Data Sheet'!E27 -> 1.06 | F9: ='Data Sheet'!F27 -> 4.96 | G9: ='Data Sheet'!G27 -> 16.56 | H9: ='Data Sheet'!H27 -> 17.5 | I9: ='Data Sheet'!I27 -> 13.24 | J9: ='Data Sheet'!J27 -> 12.45 | K9: ='Data Sheet'!K27 -> 11.17 | L9: =SUM(Quarters!H9:K9) -> 15.82 | M9: =+$L9 -> 15.82 | N9: =+$L9 -> 15.82
A10: Profit before tax | B10: ='Data Sheet'!B28 -> 8.77 | C10: ='Data Sheet'!C28 -> 8.69 | D10: ='Data Sheet'!D28 -> 8.03 | E10: ='Data Sheet'!E28 -> 13.72 | F10: ='Data Sheet'!F28 -> 14.11 | G10: ='Data Sheet'!G28 -> 30.07 | H10: ='Data Sheet'!H28 -> 48.06 | I10: ='Data Sheet'!I28 -> 51.56 | J10: ='Data Sheet'!J28 -> 83.92 | K10: ='Data Sheet'!K28 -> 135.62 | L10: =SUM(Quarters!H10:K10) -> 155.14 | M10: =M6+M7-SUM(M8:M9) -> 158.6961179 | N10: =N6+N7-SUM(N8:N9) -> 137.3510199
A11: Tax | B11: ='Data Sheet'!B29 -> 3.6 | C11: ='Data Sheet'!C29 -> 2.88 | D11: ='Data Sheet'!D29 -> 2.14 | E11: ='Data Sheet'!E29 -> 3.89 | F11: ='Data Sheet'!F29 -> 4.53 | G11: ='Data Sheet'!G29 -> 9.91 | H11: ='Data Sheet'!H29 -> 16.31 | I11: ='Data Sheet'!I29 -> 17.68 | J11: ='Data Sheet'!J29 -> 29.39 | K11: ='Data Sheet'!K29 -> 37.31 | L11: =SUM(Quarters!H11:K11) -> 43.61 | M11: =IF($L10>0,$L11/$L10,0) -> 0.2811009411 | N11: =IF($L10>0,$L11/$L10,0) -> 0.2811009411
A12: Net profit | B12: ='Data Sheet'!B30 -> 5.17 | C12: ='Data Sheet'!C30 -> 5.81 | D12: ='Data Sheet'!D30 -> 5.89 | E12: ='Data Sheet'!E30 -> 9.83 | F12: ='Data Sheet'!F30 -> 9.59 | G12: ='Data Sheet'!G30 -> 20.15 | H12: ='Data Sheet'!H30 -> 31.75 | I12: ='Data Sheet'!I30 -> 33.88 | J12: ='Data Sheet'!J30 -> 54.53 | K12: ='Data Sheet'!K30 -> 98.31 | L12: =SUM(Quarters!H12:K12) -> 111.53 | M12: =M10-M11*M10 -> 114.0864898 | N12: =N10-N11*N10 -> 98.74151892
A13: EPS | B13: =IF('Data Sheet'!B93>0,B12/'Data Sheet'!B93,0) -> 12.16831343 | C13: =IF('Data Sheet'!C93>0,C12/'Data Sheet'!C93,0) -> 13.67464236 | D13: =IF('Data Sheet'!D93>0,D12/'Data Sheet'!D93,0) -> 13.86293348 | E13: =IF('Data Sheet'!E93>0,E12/'Data Sheet'!E93,0) -> 23.13627099 | F13: =IF('Data Sheet'!F93>0,F12/'Data Sheet'!F93,0) -> 22.57139764 | G13: =IF('Data Sheet'!G93>0,G12/'Data Sheet'!G93,0) -> 47.42582507 | H13: =IF('Data Sheet'!H93>0,H12/'Data Sheet'!H93,0) -> 74.72803702 | I13: =IF('Data Sheet'!I93>0,I12/'Data Sheet'!I93,0) -> 79.74128801 | J13: =IF('Data Sheet'!J93>0,J12/'Data Sheet'!J93,0) -> 128.3439326 | K13: =IF('Data Sheet'!K93>0,K12/'Data Sheet'!K93,0) -> 231.3862463 | L13: =IF('Data Sheet'!$B6>0,'Profit & Loss'!L12/'Data Sheet'!$B6,0) -> 262.4231537 | M13: =IF('Data Sheet'!$B6>0,'Profit & Loss'!M12/'Data Sheet'!$B6,0) -> 268.4384152 | N13: =IF('Data Sheet'!$B6>0,'Profit & Loss'!N12/'Data Sheet'!$B6,0) -> 232.332653
A14: Price to earning | B14: =IF(B15>0,B15/B13,"") -> 3.890693832 | C14: =IF(C15>0,C15/C13,"") -> 6.05427168 | D14: 6.454036234 | E14: 5.747790215 | F14: 5.704121741 | G14: 6.842883841 | H14: 11.71344163 | I14: 12.14425686 | J14: 23.33000411 | K14: 21.66817064 | L14: =IF(L13>0,L15/L13,0) -> 15.65524971 | M14: =M25 -> 18.19942033 | N14: =N25 -> 10.83681095
A15: Price | B15: ='Data Sheet'!B90 -> 47.343182 | C15: ='Data Sheet'!C90 -> 82.79 | D15: ='Data Sheet'!D90 -> 89.471875 | E15: ='Data Sheet'!E90 -> 132.982432 | F15: ='Data Sheet'!F90 -> 128.75 | G15: ='Data Sheet'!G90 -> 324.529412 | H15: ='Data Sheet'!H90 -> 875.3225 | I15: ='Data Sheet'!I90 -> 968.398684 | J15: ='Data Sheet'!J90 -> 2994.264474 | K15: ='Data Sheet'!K90 -> 5013.716667 | L15: ='Data Sheet'!B8 -> 4108.3 | M15: =M13*M14 -> 4885.42355 | N15: =N13*N14 -> 2517.745039
A17: RATIOS:
A18: Dividend Payout | B18: =IF('Data Sheet'!B30>0, 'Data Sheet'!B31/'Data Sheet'!B30, 0) -> 0.08123791103 | C18: =IF('Data Sheet'!C30>0, 'Data Sheet'!C31/'Data Sheet'!C30, 0) -> 0.1325301205 | D18: =IF('Data Sheet'!D30>0, 'Data Sheet'!D31/'Data Sheet'!D30, 0) -> 0.08658743633 | E18: =IF('Data Sheet'!E30>0, 'Data Sheet'!E31/'Data Sheet'!E30, 0) -> 0.0518819939 | F18: =IF('Data Sheet'!F30>0, 'Data Sheet'!F31/'Data Sheet'!F30, 0) -> 0 | G18: =IF('Data Sheet'!G30>0, 'Data Sheet'!G31/'Data Sheet'!G30, 0) -> 0.02084367246 | H18: =IF('Data Sheet'!H30>0, 'Data Sheet'!H31/'Data Sheet'!H30, 0) -> 0.02015748031 | I18: =IF('Data Sheet'!I30>0, 'Data Sheet'!I31/'Data Sheet'!I30, 0) -> 0.01505312869 | J18: =IF('Data Sheet'!J30>0, 'Data Sheet'!J31/'Data Sheet'!J30, 0) -> 0.01173665872 | K18: =IF('Data Sheet'!K30>0, 'Data Sheet'!K31/'Data Sheet'!K30, 0) -> 0.006510019327
A19: OPM | B19: =IF(B6>0,B6/B4,0) -> 0.06188070721 | C19: =IF(C6>0,C6/C4,0) -> 0.0646039105 | D19: 0.06995621062 | E19: 0.1175766115 | F19: 0.1389383876 | G19: 0.1769734651 | H19: 0.188261098 | I19: 0.1798940626 | J19: 0.1788682296 | K19: 0.1936188204 | L19: 0.1885746538
G22: TRENDS: | H22: 10 YEARS | I22: 7 YEARS | J22: 5 YEARS | K22: 3 YEARS | L22: RECENT | M22: BEST | N22: WORST
G23: Sales Growth | H23: =IF(B4=0,"",POWER($K4/B4,1/9)-1) -> 0.2545275848 | I23: =IF(D4=0,"",POWER($K4/D4,1/7)-1) -> 0.3567465479 | J23: =IF(F4=0,"",POWER($K4/F4,1/5)-1) -> 0.3373888979 | K23: =IF(H4=0,"",POWER($K4/H4, 1/3)-1) -> 0.2187458743 | L23: =IF(ISERROR(MAX(IF(J4=0,"",(K4-J4)/J4),IF(K4=0,"",(L4-K4)/K4))),"",MAX(IF(J4=0,"",(K4-J4)/J4),IF(K4=0,"",(L4-K4)/K4))) -> 0.2810509297 | M23: =MAX(K23:L23) -> 0.2810509297 | N23: =MIN(H23:L23) -> 0.2187458743
G24: OPM | H24: =IF(SUM(B4:$K$4)=0,"",SUMPRODUCT(B19:$K$19,B4:$K$4)/SUM(B4:$K$4)) -> 0.1684831279 | I24: =IF(SUM(E4:$K$4)=0,"",SUMPRODUCT(E19:$K$19,E4:$K$4)/SUM(E4:$K$4)) -> 0.178695412 | J24: =IF(SUM(G4:$K$4)=0,"",SUMPRODUCT(G19:$K$19,G4:$K$4)/SUM(G4:$K$4)) -> 0.1847248695 | K24: =IF(SUM(I4:$K$4)=0, "", SUMPRODUCT(I19:$K$19,I4:$K$4)/SUM(I4:$K$4)) -> 0.1853934395 | L24: =L19 -> 0.1885746538 | M24: =MAX(K24:L24) -> 0.1885746538 | N24: =MIN(H24:L24) -> 0.1684831279
G25: Price to Earning | H25: =IF(ISERROR(AVERAGEIF(B14:$L14,">0")),"",AVERAGEIF(B14:$L14,">0")) -> 10.83681095 | I25: =IF(ISERROR(AVERAGEIF(E14:$L14,">0")),"",AVERAGEIF(E14:$L14,">0")) -> 12.85073984 | J25: =IF(ISERROR(AVERAGEIF(G14:$L14,">0")),"",AVERAGEIF(G14:$L14,">0")) -> 15.2256678 | K25: =IF(ISERROR(AVERAGEIF(I14:$L14,">0")),"",AVERAGEIF(I14:$L14,">0")) -> 18.19942033 | L25: =L14 -> 15.65524971 | M25: =MAX(K25:L25) -> 18.19942033 | N25: =MIN(H25:L25) -> 10.83681095

Sheet Quarters (hidden)
A1: ='Profit & Loss'!A1 -> BHARAT RASAYAN LTD | E1: =UPDATE ->  | J1: SCREENER.IN
A3: Narration | B3: ='Data Sheet'!B41 -> 2016-12-31 | C3: ='Data Sheet'!C41 -> 2017-03-31 | D3: ='Data Sheet'!D41 -> 2017-06-30 | E3: ='Data Sheet'!E41 -> 2017-09-30 | F3: ='Data Sheet'!F41 -> 2017-12-31 | G3: ='Data Sheet'!G41 -> 2018-03-31 | H3: ='Data Sheet'!H41 -> 2018-06-30 | I3: ='Data Sheet'!I41 -> 2018-09-30 | J3: ='Data Sheet'!J41 -> 2018-12-31 | K3: ='Data Sheet'!K41 -> 2019-03-31
A4: Sales | B4: ='Data Sheet'!B42 -> 130.15 | C4: ='Data Sheet'!C42 -> 132.51 | D4: ='Data Sheet'!D42 -> 169.15 | E4: ='Data Sheet'!E42 -> 244.06 | F4: ='Data Sheet'!F42 -> 188.66 | G4: ='Data Sheet'!G42 -> 193.44 | H4: ='Data Sheet'!H42 -> 245.12 | I4: ='Data Sheet'!I42 -> 285.27 | J4: ='Data Sheet'!J42 -> 189.56 | K4: ='Data Sheet'!K42 -> 272.23
A5: Expenses | B5: ='Data Sheet'!B43 -> 107.56 | C5: ='Data Sheet'!C43 -> 101.01 | D5: ='Data Sheet'!D43 -> 139.41 | E5: ='Data Sheet'!E43 -> 198.74 | F5: ='Data Sheet'!F43 -> 143.77 | G5: ='Data Sheet'!G43 -> 155.2 | H5: ='Data Sheet'!H43 -> 204.1 | I5: ='Data Sheet'!I43 -> 226.5 | J5: ='Data Sheet'!J43 -> 150.13 | K5: ='Data Sheet'!K43 -> 224.35
A6: Operating Profit | B6: ='Data Sheet'!B50 -> 22.59 | C6: ='Data Sheet'!C50 -> 31.5 | D6: ='Data Sheet'!D50 -> 29.74 | E6: ='Data Sheet'!E50 -> 45.32 | F6: ='Data Sheet'!F50 -> 44.89 | G6: ='Data Sheet'!G50 -> 38.24 | H6: ='Data Sheet'!H50 -> 41.02 | I6: ='Data Sheet'!I50 -> 58.77 | J6: ='Data Sheet'!J50 -> 39.43 | K6: ='Data Sheet'!K50 -> 47.88
A7: Other Income | B7: ='Data Sheet'!B44 -> 2.5 | C7: ='Data Sheet'!C44 -> -5.12 | D7: ='Data Sheet'!D44 -> 0.68 | E7: ='Data Sheet'!E44 -> -0.18 | F7: ='Data Sheet'!F44 -> -2.62 | G7: ='Data Sheet'!G44 -> 6.62 | H7: ='Data Sheet'!H44 -> 1.78 | I7: ='Data Sheet'!I44 -> 0.56 | J7: ='Data Sheet'!J44 -> -0.12 | K7: ='Data Sheet'!K44 -> -1.47
A8: Depreciation | B8: ='Data Sheet'!B45 -> 4.1 | C8: ='Data Sheet'!C45 -> 4.29 | D8: ='Data Sheet'!D45 -> 3.88 | E8: ='Data Sheet'!E45 -> 4.03 | F8: ='Data Sheet'!F45 -> 4.18 | G8: ='Data Sheet'!G45 -> 4.33 | H8: ='Data Sheet'!H45 -> 4.03 | I8: ='Data Sheet'!I45 -> 4.25 | J8: ='Data Sheet'!J45 -> 4.35 | K8: ='Data Sheet'!K45 -> 4.26
A9: Interest | B9: ='Data Sheet'!B46 -> 3.99 | C9: ='Data Sheet'!C46 -> 2.46 | D9: ='Data Sheet'!D46 -> 2.8 | E9: ='Data Sheet'!E46 -> 2.93 | F9: ='Data Sheet'!F46 -> 2.73 | G9: ='Data Sheet'!G46 -> 2.18 | H9: ='Data Sheet'!H46 -> 3.09 | I9: ='Data Sheet'!I46 -> 4.01 | J9: ='Data Sheet'!J46 -> 4.13 | K9: ='Data Sheet'!K46 -> 4.59
A10: Profit before tax | B10: ='Data Sheet'!B47 -> 17 | C10: ='Data Sheet'!C47 -> 19.63 | D10: ='Data Sheet'!D47 -> 23.74 | E10: ='Data Sheet'!E47 -> 38.18 | F10: ='Data Sheet'!F47 -> 35.36 | G10: ='Data Sheet'!G47 -> 38.35 | H10: ='Data Sheet'!H47 -> 35.68 | I10: ='Data Sheet'!I47 -> 51.07 | J10: ='Data Sheet'!J47 -> 30.83 | K10: ='Data Sheet'!K47 -> 37.56
A11: Tax | B11: ='Data Sheet'!B48 -> 5.76 | C11: ='Data Sheet'!C48 -> 7.52 | D11: ='Data Sheet'!D48 -> 8.11 | E11: ='Data Sheet'!E48 -> 14.1 | F11: ='Data Sheet'!F48 -> 12.27 | G11: ='Data Sheet'!G48 -> 2.83 | H11: ='Data Sheet'!H48 -> 10.7 | I11: ='Data Sheet'!I48 -> 15.28 | J11: ='Data Sheet'!J48 -> 9.48 | K11: ='Data Sheet'!K48 -> 8.15
A12: Net profit | B12: ='Data Sheet'!B49 -> 11.24 | C12: ='Data Sheet'!C49 -> 12.11 | D12: ='Data Sheet'!D49 -> 15.63 | E12: ='Data Sheet'!E49 -> 24.08 | F12: ='Data Sheet'!F49 -> 23.09 | G12: ='Data Sheet'!G49 -> 35.52 | H12: ='Data Sheet'!H49 -> 24.98 | I12: ='Data Sheet'!I49 -> 35.79 | J12: ='Data Sheet'!J49 -> 21.35 | K12: ='Data Sheet'!K49 -> 29.41
A14: OPM | B14: =IF(B4>0,B6/B4,"") -> 0.1735689589 | C14: =IF(C4>0,C6/C4,"") -> 0.2377179081 | D14: 0.1758202779 | E14: 0.1856920429 | F14: 0.23794127 | G14: 0.1976840364 | H14: 0.1673466057 | I14: 0.2060153539 | J14: 0.2080080186 | K14: 0.1758806891

Sheet Balance Sheet (hidden)
A1: ='Profit & Loss'!A1 -> BHARAT RASAYAN LTD | E1: =UPDATE ->  | J1: SCREENER.IN
A3: Narration | B3: ='Data Sheet'!B56 -> 2009-03-31 | C3: ='Data Sheet'!C56 -> 2010-03-31 | D3: ='Data Sheet'!D56 -> 2011-03-31 | E3: ='Data Sheet'!E56 -> 2012-03-31 | F3: ='Data Sheet'!F56 -> 2013-03-31 | G3: ='Data Sheet'!G56 -> 2014-03-31 | H3: ='Data Sheet'!H56 -> 2015-03-31 | I3: ='Data Sheet'!I56 -> 2016-03-31 | J3: ='Data Sheet'!J56 -> 2017-03-31 | K3: ='Data Sheet'!K56 -> 2018-03-31
A4: Equity Share Capital | B4: ='Data Sheet'!B57 -> 4.25 | C4: ='Data Sheet'!C57 -> 4.25 | D4: ='Data Sheet'!D57 -> 4.25 | E4: ='Data Sheet'!E57 -> 4.25 | F4: ='Data Sheet'!F57 -> 4.25 | G4: ='Data Sheet'!G57 -> 4.25 | H4: ='Data Sheet'!H57 -> 4.25 | I4: ='Data Sheet'!I57 -> 4.25 | J4: ='Data Sheet'!J57 -> 4.25 | K4: ='Data Sheet'!K57 -> 4.25
A5: Reserves | B5: ='Data Sheet'!B58 -> 33.82 | C5: ='Data Sheet'!C58 -> 38.74 | D5: ='Data Sheet'!D58 -> 39.49 | E5: ='Data Sheet'!E58 -> 48.68 | F5: ='Data Sheet'!F58 -> 58.28 | G5: ='Data Sheet'!G58 -> 77.93 | H5: ='Data Sheet'!H58 -> 108.89 | I5: ='Data Sheet'!I58 -> 142.15 | J5: ='Data Sheet'!J58 -> 196.46 | K5: ='Data Sheet'!K58 -> 294
A6: Borrowings | B6: ='Data Sheet'!B59 -> 12.72 | C6: ='Data Sheet'!C59 -> 3.79 | D6: ='Data Sheet'!D59 -> 8.45 | E6: ='Data Sheet'!E59 -> 39.1 | F6: ='Data Sheet'!F59 -> 131.15 | G6: ='Data Sheet'!G59 -> 143.23 | H6: ='Data Sheet'!H59 -> 140.16 | I6: ='Data Sheet'!I59 -> 110.77 | J6: ='Data Sheet'!J59 -> 114.71 | K6: ='Data Sheet'!K59 -> 128.34
A7: Other Liabilities | B7: ='Data Sheet'!B60 -> 13.34 | C7: ='Data Sheet'!C60 -> 13.54 | D7: ='Data Sheet'!D60 -> 12.72 | E7: ='Data Sheet'!E60 -> 33.88 | F7: ='Data Sheet'!F60 -> 52.58 | G7: ='Data Sheet'!G60 -> 81.91 | H7: ='Data Sheet'!H60 -> 82.1 | I7: ='Data Sheet'!I60 -> 68.6 | J7: ='Data Sheet'!J60 -> 54.64 | K7: ='Data Sheet'!K60 -> 77.49
A8: Total | B8: ='Data Sheet'!B61 -> 64.13 | C8: ='Data Sheet'!C61 -> 60.32 | D8: ='Data Sheet'!D61 -> 64.91 | E8: ='Data Sheet'!E61 -> 125.91 | F8: ='Data Sheet'!F61 -> 246.26 | G8: ='Data Sheet'!G61 -> 307.32 | H8: ='Data Sheet'!H61 -> 335.4 | I8: ='Data Sheet'!I61 -> 325.77 | J8: ='Data Sheet'!J61 -> 370.06 | K8: ='Data Sheet'!K61 -> 504.08
A10: Net Block | B10: ='Data Sheet'!B62 -> 5.42 | C10: ='Data Sheet'!C62 -> 5.59 | D10: ='Data Sheet'!D62 -> 19.95 | E10: ='Data Sheet'!E62 -> 16.24 | F10: ='Data Sheet'!F62 -> 135.05 | G10: ='Data Sheet'!G62 -> 142.26 | H10: ='Data Sheet'!H62 -> 136.62 | I10: ='Data Sheet'!I62 -> 135.72 | J10: ='Data Sheet'!J62 -> 131.03 | K10: ='Data Sheet'!K62 -> 147.72
A11: Capital Work in Progress | B11: ='Data Sheet'!B63 -> 0 | C11: ='Data Sheet'!C63 -> 0 | D11: ='Data Sheet'!D63 -> 3.28 | E11: ='Data Sheet'!E63 -> 48.27 | F11: ='Data Sheet'!F63 -> 0 | G11: ='Data Sheet'!G63 -> 0.57 | H11: ='Data Sheet'!H63 -> 1.67 | I11: ='Data Sheet'!I63 -> 0.54 | J11: ='Data Sheet'!J63 -> 1.21 | K11: ='Data Sheet'!K63 -> 7.14
A12: Investments | B12: ='Data Sheet'!B64 -> 4.38 | C12: ='Data Sheet'!C64 -> 11.42 | D12: ='Data Sheet'!D64 -> 1.11 | E12: ='Data Sheet'!E64 -> 0.99 | F12: ='Data Sheet'!F64 -> 0.28 | G12: ='Data Sheet'!G64 -> 0.26 | H12: ='Data Sheet'!H64 -> 29.79 | I12: ='Data Sheet'!I64 -> 20.14 | J12: ='Data Sheet'!J64 -> 0.09 | K12: ='Data Sheet'!K64 -> 0.09
A13: Other Assets | B13: ='Data Sheet'!B65 -> 54.33 | C13: ='Data Sheet'!C65 -> 43.31 | D13: ='Data Sheet'!D65 -> 40.57 | E13: ='Data Sheet'!E65 -> 60.41 | F13: ='Data Sheet'!F65 -> 110.93 | G13: ='Data Sheet'!G65 -> 164.23 | H13: ='Data Sheet'!H65 -> 167.32 | I13: ='Data Sheet'!I65 -> 169.37 | J13: ='Data Sheet'!J65 -> 237.73 | K13: ='Data Sheet'!K65 -> 349.13
A14: Total | B14: ='Data Sheet'!B66 -> 64.13 | C14: ='Data Sheet'!C66 -> 60.32 | D14: ='Data Sheet'!D66 -> 64.91 | E14: ='Data Sheet'!E66 -> 125.91 | F14: ='Data Sheet'!F66 -> 246.26 | G14: ='Data Sheet'!G66 -> 307.32 | H14: ='Data Sheet'!H66 -> 335.4 | I14: ='Data Sheet'!I66 -> 325.77 | J14: ='Data Sheet'!J66 -> 370.06 | K14: ='Data Sheet'!K66 -> 504.08
A16: Working Capital | B16: =B13-B7 -> 40.99 | C16: =C13-C7 -> 29.77 | D16: 27.85 | E16: 26.53 | F16: 58.35 | G16: 82.32 | H16: 85.22 | I16: 100.77 | J16: 183.09 | K16: 271.64
A17: Debtors | B17: ='Data Sheet'!B67 -> 22.26 | C17: ='Data Sheet'!C67 -> 16.92 | D17: ='Data Sheet'!D67 -> 15.93 | E17: ='Data Sheet'!E67 -> 30.04 | F17: ='Data Sheet'!F67 -> 45.02 | G17: ='Data Sheet'!G67 -> 60.41 | H17: ='Data Sheet'!H67 -> 79.53 | I17: ='Data Sheet'!I67 -> 88.17 | J17: ='Data Sheet'!J67 -> 120.15 | K17: ='Data Sheet'!K67 -> 221.61
A18: Inventory | B18: ='Data Sheet'!B68 -> 11.24 | C18: ='Data Sheet'!C68 -> 13.58 | D18: ='Data Sheet'!D68 -> 11.82 | E18: ='Data Sheet'!E68 -> 16.71 | F18: ='Data Sheet'!F68 -> 37.26 | G18: ='Data Sheet'!G68 -> 67.43 | H18: ='Data Sheet'!H68 -> 57.39 | I18: ='Data Sheet'!I68 -> 56.75 | J18: ='Data Sheet'!J68 -> 83.86 | K18: ='Data Sheet'!K68 -> 94.17
A20: Inventory Turnover | B20: =IF('Balance Sheet'!B18>0,'Profit & Loss'!B4/'Balance Sheet'!B18,0) -> 9.158362989 | C20: =IF('Balance Sheet'!C18>0,'Profit & Loss'!C4/'Balance Sheet'!C18,0) -> 7.306332842 | D20: =IF('Balance Sheet'!D18>0,'Profit & Loss'!D4/'Balance Sheet'!D18,0) -> 7.921319797 | E20: =IF('Balance Sheet'!E18>0,'Profit & Loss'!E4/'Balance Sheet'!E18,0) -> 8.494913226 | F20: =IF('Balance Sheet'!F18>0,'Profit & Loss'!F4/'Balance Sheet'!F18,0) -> 4.97020934 | G20: =IF('Balance Sheet'!G18>0,'Profit & Loss'!G4/'Balance Sheet'!G18,0) -> 5.343022394 | H20: =IF('Balance Sheet'!H18>0,'Profit & Loss'!H4/'Balance Sheet'!H18,0) -> 7.626589998 | I20: =IF('Balance Sheet'!I18>0,'Profit & Loss'!I4/'Balance Sheet'!I18,0) -> 7.950837004 | J20: =IF('Balance Sheet'!J18>0,'Profit & Loss'!J4/'Balance Sheet'!J18,0) -> 7.375387551 | K20: =IF('Balance Sheet'!K18>0,'Profit & Loss'!K4/'Balance Sheet'!K18,0) -> 8.413826059
A21: Inventory Days | B21: =IF('Profit & Loss'!B4>0,'Balance Sheet'!B18/('Profit & Loss'!B4/365),0) -> 39.85428405 | C21: =IF('Profit & Loss'!C4>0,'Balance Sheet'!C18/('Profit & Loss'!C4/365),0) -> 49.95666196 | D21: =IF('Profit & Loss'!D4>0,'Balance Sheet'!D18/('Profit & Loss'!D4/365),0) -> 46.07818007 | E21: =IF('Profit & Loss'!E4>0,'Balance Sheet'!E18/('Profit & Loss'!E4/365),0) -> 42.96688975 | F21: =IF('Profit & Loss'!F4>0,'Balance Sheet'!F18/('Profit & Loss'!F4/365),0) -> 73.43755062 | G21: =IF('Profit & Loss'!G4>0,'Balance Sheet'!G18/('Profit & Loss'!G4/365),0) -> 68.31339514 | H21: =IF('Profit & Loss'!H4>0,'Balance Sheet'!H18/('Profit & Loss'!H4/365),0) -> 47.85887272 | I21: =IF('Profit & Loss'!I4>0,'Balance Sheet'!I18/('Profit & Loss'!I4/365),0) -> 45.90711642 | J21: =IF('Profit & Loss'!J4>0,'Balance Sheet'!J18/('Profit & Loss'!J4/365),0) -> 49.48892482 | K21: =IF('Profit & Loss'!K4>0,'Balance Sheet'!K18/('Profit & Loss'!K4/365),0) -> 43.38097762
A22: Debtor Days | B22: =IF('Profit & Loss'!B4>0,'Balance Sheet'!B17/('Profit & Loss'!B4/365),0) -> 78.92850204 | C22: =IF('Profit & Loss'!C4>0,'Balance Sheet'!C17/('Profit & Loss'!C4/365),0) -> 62.24349929 | D22: =IF('Profit & Loss'!D4>0,'Balance Sheet'!D17/('Profit & Loss'!D4/365),0) -> 62.10028837 | E22: =IF('Profit & Loss'!E4>0,'Balance Sheet'!E17/('Profit & Loss'!E4/365),0) -> 77.24269109 | F22: =IF('Profit & Loss'!F4>0,'Balance Sheet'!F17/('Profit & Loss'!F4/365),0) -> 88.73211297 | G22: =IF('Profit & Loss'!G4>0,'Balance Sheet'!G17/('Profit & Loss'!G4/365),0) -> 61.20142667 | H22: =IF('Profit & Loss'!H4>0,'Balance Sheet'!H17/('Profit & Loss'!H4/365),0) -> 66.32194019 | I22: =IF('Profit & Loss'!I4>0,'Balance Sheet'!I17/('Profit & Loss'!I4/365),0) -> 71.32388467 | J22: =IF('Profit & Loss'!J4>0,'Balance Sheet'!J17/('Profit & Loss'!J4/365),0) -> 70.90501213 | K22: =IF('Profit & Loss'!K4>0,'Balance Sheet'!K17/('Profit & Loss'!K4/365),0) -> 102.0883344
A23: Creditor Days
A24: Cash Conversion Cycle
A26: Return on Equity | B26: =IF(SUM('Balance Sheet'!B4:B5)>0,'Profit & Loss'!B12/SUM('Balance Sheet'!B4:B5),"") -> 0.1358024691 | C26: =IF(SUM('Balance Sheet'!C4:C5)>0,'Profit & Loss'!C12/SUM('Balance Sheet'!C4:C5),"") -> 0.1351477088 | D26: =IF(SUM('Balance Sheet'!D4:D5)>0,'Profit & Loss'!D12/SUM('Balance Sheet'!D4:D5),"") -> 0.1346593507 | E26: =IF(SUM('Balance Sheet'!E4:E5)>0,'Profit & Loss'!E12/SUM('Balance Sheet'!E4:E5),"") -> 0.1857169847 | F26: =IF(SUM('Balance Sheet'!F4:F5)>0,'Profit & Loss'!F12/SUM('Balance Sheet'!F4:F5),"") -> 0.1533663841 | G26: =IF(SUM('Balance Sheet'!G4:G5)>0,'Profit & Loss'!G12/SUM('Balance Sheet'!G4:G5),"") -> 0.2451934777 | H26: =IF(SUM('Balance Sheet'!H4:H5)>0,'Profit & Loss'!H12/SUM('Balance Sheet'!H4:H5),"") -> 0.2806257734 | I26: =IF(SUM('Balance Sheet'!I4:I5)>0,'Profit & Loss'!I12/SUM('Balance Sheet'!I4:I5),"") -> 0.231420765 | J26: =IF(SUM('Balance Sheet'!J4:J5)>0,'Profit & Loss'!J12/SUM('Balance Sheet'!J4:J5),"") -> 0.2716855164 | K26: =IF(SUM('Balance Sheet'!K4:K5)>0,'Profit & Loss'!K12/SUM('Balance Sheet'!K4:K5),"") -> 0.3296227997
A27: Return on Capital Emp | B27: =IF(('Balance Sheet'!B10+'Balance Sheet'!B16)>0,('Profit & Loss'!B6-'Profit & Loss'!B8-'Profit & Loss'!B11)/('Balance Sheet'!B10+'Balance Sheet'!B16),"") -> 0.03964662788 | C27: =IF(('Balance Sheet'!C10+'Balance Sheet'!C16)>0,('Profit & Loss'!C6-'Profit & Loss'!C8-'Profit & Loss'!C11)/('Balance Sheet'!C10+'Balance Sheet'!C16),"") -> 0.07494343891 | D27: =IF(('Balance Sheet'!D10+'Balance Sheet'!D16)>0,('Profit & Loss'!D6-'Profit & Loss'!D8-'Profit & Loss'!D11)/('Balance Sheet'!D10+'Balance Sheet'!D16),"") -> 0.05439330544 | E27: =IF(('Balance Sheet'!E10+'Balance Sheet'!E16)>0,('Profit & Loss'!E6-'Profit & Loss'!E8-'Profit & Loss'!E11)/('Balance Sheet'!E10+'Balance Sheet'!E16),"") -> 0.2613981763 | F27: =IF(('Balance Sheet'!F10+'Balance Sheet'!F16)>0,('Profit & Loss'!F6-'Profit & Loss'!F8-'Profit & Loss'!F11)/('Balance Sheet'!F10+'Balance Sheet'!F16),"") -> 0.0740434333 | G27: =IF(('Balance Sheet'!G10+'Balance Sheet'!G16)>0,('Profit & Loss'!G6-'Profit & Loss'!G8-'Profit & Loss'!G11)/('Balance Sheet'!G10+'Balance Sheet'!G16),"") -> 0.1603882803 | H27: =IF(('Balance Sheet'!H10+'Balance Sheet'!H16)>0,('Profit & Loss'!H6-'Profit & Loss'!H8-'Profit & Loss'!H11)/('Balance Sheet'!H10+'Balance Sheet'!H16),"") -> 0.2179949513 | I27: =IF(('Balance Sheet'!I10+'Balance Sheet'!I16)>0,('Profit & Loss'!I6-'Profit & Loss'!I8-'Profit & Loss'!I11)/('Balance Sheet'!I10+'Balance Sheet'!I16),"") -> 0.1964565098 | J27: =IF(('Balance Sheet'!J10+'Balance Sheet'!J16)>0,('Profit & Loss'!J6-'Profit & Loss'!J8-'Profit & Loss'!J11)/('Balance Sheet'!J10+'Balance Sheet'!J16),"") -> 0.2063224246 | K27: =IF(('Balance Sheet'!K10+'Balance Sheet'!K16)>0,('Profit & Loss'!K6-'Profit & Loss'!K8-'Profit & Loss'!K11)/('Balance Sheet'!K10+'Balance Sheet'!K16),"") -> 0.2376955361
A31: Common Size Balance Sheet | B31: =B3 -> 2009-03-31 | C31: =C3 -> 2010-03-31 | D31: 2011-03-31 | E31: 2012-03-31 | F31: 2013-03-31 | G31: 2014-03-31 | H31: 2015-03-31 | I31: 2016-03-31 | J31: 2017-03-31 | K31: 2018-03-31 | L31: Check back how Assets are being put to use
A32: Net Block/Total Assets | B32: =B10/B$8 -> 0.08451582723 | C32: =C10/C$8 -> 0.09267241379 | D32: 0.3073486366 | E32: 0.1289810182 | F32: 0.5484041257 | G32: 0.4629051152 | H32: 0.4073345259 | I32: 0.4166129478 | J32: 0.3540777171 | K32: 0.2930487224
A33: Working Capital/Total Assets | B33: =B16/B$8 -> 0.6391704351 | C33: =C16/C$8 -> 0.4935344828 | D33: 0.4290556155 | E33: 0.2107060599 | F33: 0.2369446926 | G33: 0.2678641156 | H33: 0.254084675 | I33: 0.3093286675 | J33: 0.4947576069 | K33: 0.538882717
A34: Debtors/Total Assets | B34: =B17/B$8 -> 0.347107438 | C34: =C17/C$8 -> 0.2805039788 | D34: 0.2454167309 | E34: 0.2385831149 | F34: 0.1828149111 | G34: 0.1965703501 | H34: 0.2371198569 | I34: 0.2706510728 | J34: 0.3246770794 | K34: 0.439632598
A35: Inventory/Total Assets | B35: =B18/B$8 -> 0.1752689849 | C35: =C18/C$8 -> 0.225132626 | D35: 0.1820982899 | E35: 0.1327138432 | F35: 0.1513035004 | G35: 0.2194129897 | H35: 0.1711091234 | I35: 0.1742026583 | J35: 0.2266119008 | K35: 0.1868155848
A37: Borrowings/Total Assets | B37: =B6/B$8 -> 0.1983471074 | C37: =C6/C$8 -> 0.06283156499 | D37: 0.1301802496 | E37: 0.3105392741 | F37: 0.5325672054 | G37: 0.4660614343 | H37: 0.4178890877 | I37: 0.3400251711 | J37: 0.3099767605 | K37: 0.2546024441

Sheet Cash Flow (hidden)
A1: ='Balance Sheet'!A1 -> BHARAT RASAYAN LTD | E1: =UPDATE ->  | J1: SCREENER.IN
A3: Narration | B3: ='Data Sheet'!B81 -> 2009-03-31 | C3: ='Data Sheet'!C81 -> 2010-03-31 | D3: ='Data Sheet'!D81 -> 2011-03-31 | E3: ='Data Sheet'!E81 -> 2012-03-31 | F3: ='Data Sheet'!F81 -> 2013-03-31 | G3: ='Data Sheet'!G81 -> 2014-03-31 | H3: ='Data Sheet'!H81 -> 2015-03-31 | I3: ='Data Sheet'!I81 -> 2016-03-31 | J3: ='Data Sheet'!J81 -> 2017-03-31 | K3: ='Data Sheet'!K81 -> 2018-03-31
A4: Cash from Operating Activity | B4: ='Data Sheet'!B82 -> -2.23 | C4: ='Data Sheet'!C82 -> 18.76 | D4: ='Data Sheet'!D82 -> 10.07 | E4: ='Data Sheet'!E82 -> 12.54 | F4: ='Data Sheet'!F82 -> -7.55 | G4: ='Data Sheet'!G82 -> 28.52 | H4: ='Data Sheet'!H82 -> 59.71 | I4: ='Data Sheet'!I82 -> 46.73 | J4: ='Data Sheet'!J82 -> 15.78 | K4: ='Data Sheet'!K82 -> 28.81
A5: Cash from Investing Activity | B5: ='Data Sheet'!B83 -> -3.99 | C5: ='Data Sheet'!C83 -> -8.05 | D5: ='Data Sheet'!D83 -> -6.93 | E5: ='Data Sheet'!E83 -> -41.81 | F5: ='Data Sheet'!F83 -> -76.69 | G5: ='Data Sheet'!G83 -> -25.36 | H5: ='Data Sheet'!H83 -> -40.97 | I5: ='Data Sheet'!I83 -> -4.99 | J5: ='Data Sheet'!J83 -> 7.77 | K5: ='Data Sheet'!K83 -> -30.85
A6: Cash from Financing Activity | B6: ='Data Sheet'!B84 -> 4.86 | C6: ='Data Sheet'!C84 -> -9.62 | D6: ='Data Sheet'!D84 -> -5.23 | E6: ='Data Sheet'!E84 -> 29.79 | F6: ='Data Sheet'!F84 -> 87.01 | G6: ='Data Sheet'!G84 -> -2.65 | H6: ='Data Sheet'!H84 -> -18.98 | I6: ='Data Sheet'!I84 -> -42.62 | J6: ='Data Sheet'!J84 -> -23.9 | K6: ='Data Sheet'!K84 -> 2.23
A7: Net Cash Flow | B7: ='Data Sheet'!B85 -> -1.36 | C7: ='Data Sheet'!C85 -> 1.09 | D7: ='Data Sheet'!D85 -> -2.09 | E7: ='Data Sheet'!E85 -> 0.52 | F7: ='Data Sheet'!F85 -> 2.77 | G7: ='Data Sheet'!G85 -> 0.51 | H7: ='Data Sheet'!H85 -> -0.25 | I7: ='Data Sheet'!I85 -> -0.88 | J7: ='Data Sheet'!J85 -> -0.34 | K7: ='Data Sheet'!K85 -> 0.18

Sheet Customization
A1: ='Data Sheet'!B1 -> BHARAT RASAYAN LTD
B4: DELTA NETWORTH | C4: DELTA MKTCAP | D4: IMPACT* | F4: HISTORICAL VALUATIONS | M4: PRE-TAX BOND
A5: 10 YR | B5: =KeyMetrics!K12-KeyMetrics!B12 -> 260.18 | C5: =KeyMetrics!K27-KeyMetrics!B27 -> 2110.082968 | D5: =C5/B5 -> 8.110089046 | G5: P/E | H5: P/B | I5: EV/EBITDA | J5: P/SALES | K5: YIELD | M5: LongTerm Bond | N5: 0.09
A6: 7 YR | B6: =KeyMetrics!K12-KeyMetrics!E12 -> 245.32 | C6: =KeyMetrics!K27-KeyMetrics!E27 -> 2073.697077 | D6: =C6/B6 -> 8.453029013 | F6: MIN | G6: =MIN(KeyMetrics!B34:K34) -> 3.890693832 | H6: =MIN(KeyMetrics!B35:K35) -> 0.528365829 | I6: =MIN(KeyMetrics!B38:K38) -> 3.035601815 | J6: =MIN(KeyMetrics!B37:K37) -> 0.1954039937 | K6: =MAX(KeyMetrics!B39:K39) -> 0.02189034908 | M6: LTB Quote | N6: =('Profit & Loss'!$L$10/'Data Sheet'!$B$61)/N5 -> 26.87942894
A7: 5 YR | B7: =KeyMetrics!K12-KeyMetrics!G12 -> 216.07 | C7: =KeyMetrics!K27-KeyMetrics!G27 -> 1992.313746 | D7: =C7/B7 -> 9.220686564 | F7: MAX | G7: =MAX(KeyMetrics!B34:K34) -> 23.33000411 | H7: =MAX(KeyMetrics!B35:K35) -> 7.142323068 | I7: =MAX(KeyMetrics!B38:K38) -> 13.80765796 | J7: =MAX(KeyMetrics!B37:K37) -> 2.688523538 | K7: =MIN(KeyMetrics!B39:K39) -> 0 | M7: Equity Quoting @ | N7: =('Profit & Loss'!$L$6/'Data Sheet'!$B$6)/'Data Sheet'!$B$8 -> 0.1071573799
A8: 3 YR | B8: =KeyMetrics!K12-KeyMetrics!I12 -> 151.85 | C8: =KeyMetrics!K27-KeyMetrics!I27 -> 1718.750433 | D8: =C8/B8 -> 11.31873844 | F8: TRAILING | G8: ='Data Sheet'!B8/'Profit & Loss'!L13 -> 15.65524971 | H8: =KeyMetrics!L27/KeyMetrics!K12 -> 5.85424979 | I8: =KeyMetrics!K38 -> 13.80765796 | J8: =KeyMetrics!L27/'Data Sheet'!K17 -> 2.20366514 | K8: ='Data Sheet'!K31/KeyMetrics!L27 -> 0.0003665458211
A9: 1 YR | B9: =KeyMetrics!K12-KeyMetrics!J12 -> 97.54 | C9: =KeyMetrics!K27-KeyMetrics!J27 -> 858.012731 | D9: =C9/B9 -> 8.796521745
A10: * IMPACT – Every Rupee retained added xx.yy in incremental market value
A12: =A1 -> BHARAT RASAYAN LTD | B12: SALES | C12: GROSS PROFIT | D12: EBIT | E12: PAT | F12: DIVIDEND | G12: EPA** | H12: MKTCAP | I12: CFO** | J12: FCF** | K12: NETWORTH | L12: TOTAL RETURNS
A13: 10 YR CAGR | B13: =POWER('Data Sheet'!$K17/'Data Sheet'!$B17, 1/9)-1 -> 0.2545275848 | C13: =POWER(KeyMetrics!$K4/KeyMetrics!$B4, 1/9)-1 -> 0.2838544721 | D13: =POWER(KeyMetrics!$K6/KeyMetrics!$B6, 1/9)-1 -> 0.3539505536 | E13: =POWER(KeyMetrics!$K9/KeyMetrics!$B9, 1/9)-1 -> 0.387148693 | F13: =POWER(KeyMetrics!$K10/KeyMetrics!$B10, 1/9)-1 -> 0.04791397344 | G13: =POWER(KeyMetrics!$K25/KeyMetrics!$B25, 1/9)-1 -> 1.040411899 | H13: =POWER(KeyMetrics!$K27/KeyMetrics!$B27, 1/9)-1 -> 0.6787620742 | I13: =POWER(KeyMetrics!$K18/KeyMetrics!$B18, 1/9)-1 -> -2.328834616 | J13: =POWER(KeyMetrics!$K20/KeyMetrics!$C20, 1/8)-1 ->  | K13: =POWER(KeyMetrics!$K12/KeyMetrics!$B12, 1/9)-1 -> 0.2569935927 | L13: =POWER(KeyMetrics!$K28/KeyMetrics!$B28, 1/9)-1 -> 0.6749677665
A14: 5 YR CAGR | B14: =POWER('Data Sheet'!$K17/'Data Sheet'!$G17, 1/4)-1 -> 0.2177734084 | C14: =POWER(KeyMetrics!$K4/KeyMetrics!$G4, 1/4)-1 -> 0.2704056835 | D14: =POWER(KeyMetrics!$K6/KeyMetrics!$G6, 1/4)-1 -> 0.3320108541 | E14: =POWER(KeyMetrics!$K9/KeyMetrics!$G9, 1/4)-1 -> 0.4862116504 | F14: =POWER(KeyMetrics!$K10/KeyMetrics!$G10, 1/4)-1 -> 0.1110476136 | G14: =POWER(KeyMetrics!$K25/KeyMetrics!$G25, 1/4)-1 -> 0.8992560947 | H14: =POWER(KeyMetrics!$K27/KeyMetrics!$G27, 1/4)-1 -> 0.982560418 | I14: =POWER(KeyMetrics!$K18/KeyMetrics!$G18, 1/4)-1 -> 0.002532439609 | J14: =POWER(KeyMetrics!$K20/KeyMetrics!$G20, 1/4)-1 ->  | K14: =POWER(KeyMetrics!$K12/KeyMetrics!$G12, 1/4)-1 -> 0.3802367251 | L14: =POWER(KeyMetrics!$K28/KeyMetrics!$G28, 1/4)-1 -> 0.9812023288
A15: 3 YR CAGR | B15: =POWER('Data Sheet'!$K17/'Data Sheet'!$I17, 1/2)-1 -> 0.3251458837 | C15: =POWER(KeyMetrics!$K4/KeyMetrics!$I4, 1/2)-1 -> 0.3121004264 | D15: =POWER(KeyMetrics!$K6/KeyMetrics!$I6, 1/2)-1 -> 0.505083977 | E15: =POWER(KeyMetrics!$K9/KeyMetrics!$I9, 1/2)-1 -> 0.7034412008 | F15: =POWER(KeyMetrics!$K10/KeyMetrics!$I10, 1/2)-1 -> 0.1202240672 | G15: =POWER(KeyMetrics!$K25/KeyMetrics!$I25, 1/2)-1 -> 0.9765452944 | H15: =POWER(KeyMetrics!$K27/KeyMetrics!$I27, 1/2)-1 -> 1.275374038 | I15: =POWER(KeyMetrics!$K18/KeyMetrics!$I18, 1/2)-1 -> -0.2148118464 | J15: =POWER(KeyMetrics!$K20/KeyMetrics!$I20, 1/2)-1 ->  | K15: =POWER(KeyMetrics!$K12/KeyMetrics!$I12, 1/2)-1 -> 0.4273145329 | L15: =POWER(KeyMetrics!$K28/KeyMetrics!$I28, 1/2)-1 -> 1.274306726
A16: 1 YR GROWTH | B16: =('Data Sheet'!$K17-'Data Sheet'!$J17)/'Data Sheet'!$J17 -> 0.2810509297 | C16: =(KeyMetrics!$K4-KeyMetrics!$J4)/KeyMetrics!$J4 -> 0.4020714656 | D16: =(KeyMetrics!$K6-KeyMetrics!$J6)/KeyMetrics!$J6 -> 0.5231918647 | E16: =(KeyMetrics!$K9-KeyMetrics!$J9)/KeyMetrics!$J9 -> 0.8028608106 | F16: =(KeyMetrics!$K10-KeyMetrics!$J10)/KeyMetrics!$J10 -> 0 | G16: =(KeyMetrics!$K25-KeyMetrics!$J25)/KeyMetrics!$J25 -> 1.228674094 | H16: =(KeyMetrics!$K27-KeyMetrics!$J27)/KeyMetrics!$J27 -> 0.674440154 | I16: =(KeyMetrics!$K18-KeyMetrics!$J18)/KeyMetrics!$J18 -> 0.8257287706 | J16: =(KeyMetrics!$K20-KeyMetrics!$J20)/KeyMetrics!$J20 -> -4.035608309 | K16: =(KeyMetrics!$K12-KeyMetrics!$J12)/KeyMetrics!$J12 -> 0.4859747895 | L16: =(KeyMetrics!$K28-KeyMetrics!$J28)/KeyMetrics!$J28 -> 0.674101033
A17: **modify (if, then) for negative values
A18: =A1 -> BHARAT RASAYAN LTD | B18: ='Data Sheet'!B16 -> 2009-03-31 | C18: ='Data Sheet'!C16 -> 2010-03-31 | D18: ='Data Sheet'!D16 -> 2011-03-31 | E18: ='Data Sheet'!E16 -> 2012-03-31 | F18: ='Data Sheet'!F16 -> 2013-03-31 | G18: ='Data Sheet'!G16 -> 2014-03-31 | H18: ='Data Sheet'!H16 -> 2015-03-31 | I18: ='Data Sheet'!I16 -> 2016-03-31 | J18: ='Data Sheet'!J16 -> 2017-03-31 | K18: ='Data Sheet'!K16 -> 2018-03-31
A19: Total Assets/Networth= Financial Leverage | B19: =KeyMetrics!B16/KeyMetrics!B12 -> 1.6845285 | C19: =KeyMetrics!C16/KeyMetrics!C12 -> 1.403117004 | D19: =KeyMetrics!D16/KeyMetrics!D12 -> 1.483996342 | E19: =KeyMetrics!E16/KeyMetrics!E12 -> 2.378802192 | F19: =KeyMetrics!F16/KeyMetrics!F12 -> 3.938269631 | G19: =KeyMetrics!G16/KeyMetrics!G12 -> 3.739596009 | H19: =KeyMetrics!H16/KeyMetrics!H12 -> 2.9644688 | I19: =KeyMetrics!I16/KeyMetrics!I12 -> 2.225204918 | J19: =KeyMetrics!J16/KeyMetrics!J12 -> 1.843754671 | K19: =KeyMetrics!K16/KeyMetrics!K12 -> 1.690125733
A20: Long term debt/Earning | B20: ='Data Sheet'!B59/'Data Sheet'!B30 -> 2.460348162 | C20: ='Data Sheet'!C59/'Data Sheet'!C30 -> 0.65232358 | D20: ='Data Sheet'!D59/'Data Sheet'!D30 -> 1.434634975 | E20: ='Data Sheet'!E59/'Data Sheet'!E30 -> 3.977619532 | F20: ='Data Sheet'!F59/'Data Sheet'!F30 -> 13.67570386 | G20: ='Data Sheet'!G59/'Data Sheet'!G30 -> 7.108188586 | H20: ='Data Sheet'!H59/'Data Sheet'!H30 -> 4.414488189 | I20: ='Data Sheet'!I59/'Data Sheet'!I30 -> 3.269480519 | J20: ='Data Sheet'!J59/'Data Sheet'!J30 -> 2.10361269 | K20: ='Data Sheet'!K59/'Data Sheet'!K30 -> 1.305462313
A21: Current liablility/Earning | B21: ='Data Sheet'!B60/'Data Sheet'!B30 -> 2.580270793 | C21: ='Data Sheet'!C60/'Data Sheet'!C30 -> 2.330464716 | D21: ='Data Sheet'!D60/'Data Sheet'!D30 -> 2.15959253 | E21: ='Data Sheet'!E60/'Data Sheet'!E30 -> 3.446592065 | F21: ='Data Sheet'!F60/'Data Sheet'!F30 -> 5.482794578 | G21: ='Data Sheet'!G60/'Data Sheet'!G30 -> 4.065012407 | H21: ='Data Sheet'!H60/'Data Sheet'!H30 -> 2.585826772 | I21: ='Data Sheet'!I60/'Data Sheet'!I30 -> 2.024793388 | J21: ='Data Sheet'!J60/'Data Sheet'!J30 -> 1.002017238 | K21: ='Data Sheet'!K60/'Data Sheet'!K30 -> 0.7882209338
A22: Total liability/Earning | B22: =('Data Sheet'!B59+'Data Sheet'!B60)/'Data Sheet'!B30 -> 5.040618956 | C22: =('Data Sheet'!C59+'Data Sheet'!C60)/'Data Sheet'!C30 -> 2.982788296 | D22: =('Data Sheet'!D59+'Data Sheet'!D60)/'Data Sheet'!D30 -> 3.594227504 | E22: =('Data Sheet'!E59+'Data Sheet'!E60)/'Data Sheet'!E30 -> 7.424211597 | F22: =('Data Sheet'!F59+'Data Sheet'!F60)/'Data Sheet'!F30 -> 19.15849844 | G22: =('Data Sheet'!G59+'Data Sheet'!G60)/'Data Sheet'!G30 -> 11.17320099 | H22: =('Data Sheet'!H59+'Data Sheet'!H60)/'Data Sheet'!H30 -> 7.000314961 | I22: =('Data Sheet'!I59+'Data Sheet'!I60)/'Data Sheet'!I30 -> 5.294273908 | J22: =('Data Sheet'!J59+'Data Sheet'!J60)/'Data Sheet'!J30 -> 3.105629928 | K22: =('Data Sheet'!K59+'Data Sheet'!K60)/'Data Sheet'!K30 -> 2.093683247
A23: Debt/Equity | B23: ='Data Sheet'!B59/KeyMetrics!B12 -> 0.3341213554 | C23: ='Data Sheet'!C59/KeyMetrics!C12 -> 0.08816003722 | D23: ='Data Sheet'!D59/KeyMetrics!D12 -> 0.1931870142 | E23: ='Data Sheet'!E59/KeyMetrics!E12 -> 0.7387115058 | F23: ='Data Sheet'!F59/KeyMetrics!F12 -> 2.097393251 | G23: ='Data Sheet'!G59/KeyMetrics!G12 -> 1.74288148 | H23: ='Data Sheet'!H59/KeyMetrics!H12 -> 1.238819162 | I23: ='Data Sheet'!I59/KeyMetrics!I12 -> 0.7566256831 | J23: ='Data Sheet'!J59/KeyMetrics!J12 -> 0.5715211001 | K23: ='Data Sheet'!K59/KeyMetrics!K12 -> 0.4303101425
A24: Interest Coverage | B24: =KeyMetrics!B6/'Data Sheet'!B27 -> 11.56626506 | C24: =KeyMetrics!C6/'Data Sheet'!C27 -> 18.73469388 | D24: =KeyMetrics!D6/'Data Sheet'!D27 -> 30.74074074 | E24: =KeyMetrics!E6/'Data Sheet'!E27 -> 13.94339623 | F24: =KeyMetrics!F6/'Data Sheet'!F27 -> 3.844758065 | G24: =KeyMetrics!G6/'Data Sheet'!G27 -> 2.815821256 | H24: =KeyMetrics!H6/'Data Sheet'!H27 -> 3.746285714 | I24: =KeyMetrics!I6/'Data Sheet'!I27 -> 4.894259819 | J24: =KeyMetrics!J6/'Data Sheet'!J27 -> 7.740562249 | K24: =KeyMetrics!K6/'Data Sheet'!K27 -> 13.14145031
A25: Working Capital/Sales | B25: =KeyMetrics!B13/'Data Sheet'!B17 -> 0.3981931222 | C25: =KeyMetrics!C13/'Data Sheet'!C17 -> 0.3000403145 | D25: =KeyMetrics!D13/'Data Sheet'!D17 -> 0.2974473993 | E25: =KeyMetrics!E13/'Data Sheet'!E17 -> 0.1868967946 | F25: =KeyMetrics!F13/'Data Sheet'!F17 -> 0.3150818079 | G25: =KeyMetrics!G13/'Data Sheet'!G17 -> 0.228488953 | H25: =KeyMetrics!H13/'Data Sheet'!H17 -> 0.1947040143 | I25: =KeyMetrics!I13/'Data Sheet'!I17 -> 0.2233328162 | J25: =KeyMetrics!J13/'Data Sheet'!J17 -> 0.2960226354 | K25: =KeyMetrics!K13/'Data Sheet'!K17 -> 0.3428369493 | L25: Check for improving or deteriorating picture
A26: Inventory Turns | B26: =365/B27 -> 9.158362989 | C26: 7.306332842 | D26: 7.921319797 | E26: 8.494913226 | F26: 4.97020934 | G26: 5.343022394 | H26: 7.626589998 | I26: 7.950837004 | J26: 7.375387551 | K26: 8.413826059
A27: Inventory Days | B27: ='Balance Sheet'!B21 -> 39.85428405 | C27: ='Balance Sheet'!C21 -> 49.95666196 | D27: ='Balance Sheet'!D21 -> 46.07818007 | E27: ='Balance Sheet'!E21 -> 42.96688975 | F27: ='Balance Sheet'!F21 -> 73.43755062 | G27: ='Balance Sheet'!G21 -> 68.31339514 | H27: ='Balance Sheet'!H21 -> 47.85887272 | I27: ='Balance Sheet'!I21 -> 45.90711642 | J27: ='Balance Sheet'!J21 -> 49.48892482 | K27: ='Balance Sheet'!K21 -> 43.38097762
A28: Debtor Days | B28: ='Balance Sheet'!B22 -> 78.92850204 | C28: ='Balance Sheet'!C22 -> 62.24349929 | D28: ='Balance Sheet'!D22 -> 62.10028837 | E28: ='Balance Sheet'!E22 -> 77.24269109 | F28: ='Balance Sheet'!F22 -> 88.73211297 | G28: ='Balance Sheet'!G22 -> 61.20142667 | H28: ='Balance Sheet'!H22 -> 66.32194019 | I28: ='Balance Sheet'!I22 -> 71.32388467 | J28: ='Balance Sheet'!J22 -> 70.90501213 | K28: ='Balance Sheet'!K22 -> 102.0883344
A29: Creditor Days | L29: Check back to see if Creditor policy change is impacting Working Cap cycle
A30: Cash Conversion Cycle
A31: Cash In/Cash Out Ratio | B31: =('Data Sheet'!B67+'Data Sheet'!B69)/'Data Sheet'!B60 -> 1.733883058 | C31: =('Data Sheet'!C67+'Data Sheet'!C69)/'Data Sheet'!C60 -> 1.402511078 | D31: =('Data Sheet'!D67+'Data Sheet'!D69)/'Data Sheet'!D60 -> 1.338050314 | E31: =('Data Sheet'!E67+'Data Sheet'!E69)/'Data Sheet'!E60 -> 0.9341794569 | F31: =('Data Sheet'!F67+'Data Sheet'!F69)/'Data Sheet'!F60 -> 0.9395207303 | G31: =('Data Sheet'!G67+'Data Sheet'!G69)/'Data Sheet'!G60 -> 0.7973385423 | H31: =('Data Sheet'!H67+'Data Sheet'!H69)/'Data Sheet'!H60 -> 1.025213155 | I31: =('Data Sheet'!I67+'Data Sheet'!I69)/'Data Sheet'!I60 -> 1.340233236 | J31: =('Data Sheet'!J67+'Data Sheet'!J69)/'Data Sheet'!J60 -> 2.260431918 | K31: =('Data Sheet'!K67+'Data Sheet'!K69)/'Data Sheet'!K60 -> 2.92424829
A32: Current Ratio | B32: ='Data Sheet'!B65/'Data Sheet'!B60 -> 4.072713643 | C32: ='Data Sheet'!C65/'Data Sheet'!C60 -> 3.198670606 | D32: ='Data Sheet'!D65/'Data Sheet'!D60 -> 3.189465409 | E32: ='Data Sheet'!E65/'Data Sheet'!E60 -> 1.783057851 | F32: ='Data Sheet'!F65/'Data Sheet'!F60 -> 2.109737543 | G32: ='Data Sheet'!G65/'Data Sheet'!G60 -> 2.005005494 | H32: ='Data Sheet'!H65/'Data Sheet'!H60 -> 2.038002436 | I32: ='Data Sheet'!I65/'Data Sheet'!I60 -> 2.468950437 | J32: ='Data Sheet'!J65/'Data Sheet'!J60 -> 4.350841874 | K32: ='Data Sheet'!K65/'Data Sheet'!K60 -> 4.505484579
A33: CFO/PAT | B33: =KeyMetrics!B18/KeyMetrics!B9 -> -0.4313346228 | C33: =KeyMetrics!C18/KeyMetrics!C9 -> 3.228915663 | D33: =KeyMetrics!D18/KeyMetrics!D9 -> 1.709677419 | E33: =KeyMetrics!E18/KeyMetrics!E9 -> 1.275686673 | F33: =KeyMetrics!F18/KeyMetrics!F9 -> -0.787278415 | G33: =KeyMetrics!G18/KeyMetrics!G9 -> 1.415384615 | H33: =KeyMetrics!H18/KeyMetrics!H9 -> 1.880629921 | I33: =KeyMetrics!I18/KeyMetrics!I9 -> 1.379279811 | J33: =KeyMetrics!J18/KeyMetrics!J9 -> 0.2893819916 | K33: =KeyMetrics!K18/KeyMetrics!K9 -> 0.2930525887
A35: Gross Margin =Gross Profit/Sales | B35: =KeyMetrics!B4/'Data Sheet'!B17 -> 0.2775403147 | C35: =KeyMetrics!C4/'Data Sheet'!C17 -> 0.2841161056 | D35: =KeyMetrics!D4/'Data Sheet'!D17 -> 0.3792587846 | E35: =KeyMetrics!E4/'Data Sheet'!E17 -> 0.2962310673 | F35: =KeyMetrics!F4/'Data Sheet'!F17 -> 0.2489335277 | G35: =KeyMetrics!G4/'Data Sheet'!G17 -> 0.288497835 | H35: =KeyMetrics!H4/'Data Sheet'!H17 -> 0.3577874752 | I35: =KeyMetrics!I4/'Data Sheet'!I17 -> 0.3485295095 | J35: =KeyMetrics!J4/'Data Sheet'!J17 -> 0.3122069523 | K35: =KeyMetrics!K4/'Data Sheet'!K17 -> 0.3417010589
A36: EBIT/Sales | B36: =KeyMetrics!B6/'Data Sheet'!B17 -> 0.09325820867 | C36: =KeyMetrics!C6/'Data Sheet'!C17 -> 0.09252166902 | D36: =KeyMetrics!D6/'Data Sheet'!D17 -> 0.08864680124 | E36: =KeyMetrics!E6/'Data Sheet'!E17 -> 0.1041211694 | F36: =KeyMetrics!F6/'Data Sheet'!F17 -> 0.1029753226 | G36: =KeyMetrics!G6/'Data Sheet'!G17 -> 0.1294271122 | H36: =KeyMetrics!H6/'Data Sheet'!H17 -> 0.1497863785 | I36: =KeyMetrics!I6/'Data Sheet'!I17 -> 0.1436138383 | J36: =KeyMetrics!J6/'Data Sheet'!J17 -> 0.1558124495 | K36: =KeyMetrics!K6/'Data Sheet'!K17 -> 0.1852637159
A37: EBITDA/Sales | B37: =KeyMetrics!B7/'Data Sheet'!B17 -> 0.1022925976 | C37: =KeyMetrics!C7/'Data Sheet'!C17 -> 0.1013908486 | D37: =KeyMetrics!D7/'Data Sheet'!D17 -> 0.1079782121 | E37: =KeyMetrics!E7/'Data Sheet'!E17 -> 0.1155336386 | F37: =KeyMetrics!F7/'Data Sheet'!F17 -> 0.1401263567 | G37: =KeyMetrics!G7/'Data Sheet'!G17 -> 0.1789163984 | H37: =KeyMetrics!H7/'Data Sheet'!H17 -> 0.1902945007 | I37: =KeyMetrics!I7/'Data Sheet'!I17 -> 0.1813567962 | J37: =KeyMetrics!J7/'Data Sheet'!J17 -> 0.1823767179 | K37: =KeyMetrics!K7/'Data Sheet'!K17 -> 0.2059874042
A38: Op Profit (Ex Other Income)/Sales | B38: =KeyMetrics!B8/'Data Sheet'!B17 -> 0.06226928308 | C38: =KeyMetrics!C8/'Data Sheet'!C17 -> 0.0646039105 | D38: =KeyMetrics!D8/'Data Sheet'!D17 -> 0.06995621062 | E38: =KeyMetrics!E8/'Data Sheet'!E17 -> 0.1175766115 | F38: =KeyMetrics!F8/'Data Sheet'!F17 -> 0.139154382 | G38: =KeyMetrics!G8/'Data Sheet'!G17 -> 0.1771400022 | H38: =KeyMetrics!H8/'Data Sheet'!H17 -> 0.1883296397 | I38: =KeyMetrics!I8/'Data Sheet'!I17 -> 0.1800270384 | J38: =KeyMetrics!J8/'Data Sheet'!J17 -> 0.1792077607 | K38: =KeyMetrics!K8/'Data Sheet'!K17 -> 0.1936314414
A39: Net Margin =PAT/Sales | B39: =KeyMetrics!B9/'Data Sheet'!B17 -> 0.05022343112 | C39: =KeyMetrics!C9/'Data Sheet'!C17 -> 0.05855674259 | D39: =KeyMetrics!D9/'Data Sheet'!D17 -> 0.06290718787 | E39: =KeyMetrics!E9/'Data Sheet'!E17 -> 0.06924973582 | F39: =KeyMetrics!F9/'Data Sheet'!F17 -> 0.0517846536 | G39: =KeyMetrics!G9/'Data Sheet'!G17 -> 0.05592872211 | H39: =KeyMetrics!H9/'Data Sheet'!H17 -> 0.07253992552 | I39: =KeyMetrics!I9/'Data Sheet'!I17 -> 0.07508698832 | J39: =KeyMetrics!J9/'Data Sheet'!J17 -> 0.08816491512 | K39: =KeyMetrics!K9/'Data Sheet'!K17 -> 0.1240770891
A40: Op Cash Flow/Sales | B40: =KeyMetrics!B18/'Data Sheet'!B17 -> -0.02166310472 | C40: =KeyMetrics!C18/'Data Sheet'!C17 -> 0.1890747833 | D40: =KeyMetrics!D18/'Data Sheet'!D17 -> 0.1075509986 | E40: =KeyMetrics!E18/'Data Sheet'!E17 -> 0.08834096513 | F40: =KeyMetrics!F18/'Data Sheet'!F17 -> -0.04076894001 | G40: =KeyMetrics!G18/'Data Sheet'!G17 -> 0.07916065283 | H40: =KeyMetrics!H18/'Data Sheet'!H17 -> 0.1364207544 | I40: =KeyMetrics!I18/'Data Sheet'!I17 -> 0.1035659671 | J40: =KeyMetrics!J18/'Data Sheet'!J17 -> 0.02551333872 | K40: =KeyMetrics!K18/'Data Sheet'!K17 -> 0.03636111216
A41: Free Cash Flow/Sales | B41: =KeyMetrics!B20/'Data Sheet'!B17 -> 0 | C41: =KeyMetrics!C20/'Data Sheet'!C17 -> 0.1784922395 | D41: =KeyMetrics!D20/'Data Sheet'!D17 -> -0.1001815657 | E41: =KeyMetrics!E20/'Data Sheet'!E17 -> -0.2138781261 | F41: =KeyMetrics!F20/'Data Sheet'!F17 -> -0.4588260705 | G41: =KeyMetrics!G20/'Data Sheet'!G17 -> 0.008077051182 | H41: =KeyMetrics!H20/'Data Sheet'!H17 -> 0.1062852704 | I41: =KeyMetrics!I20/'Data Sheet'!I17 -> 0.070322023 | J41: =KeyMetrics!J20/'Data Sheet'!J17 -> 0.005448666128 | K41: =KeyMetrics!K20/'Data Sheet'!K17 -> -0.01291128696
A42: EPA/Sales | B42: =KeyMetrics!B25/'Data Sheet'!B17 -> 0.0008751995771 | C42: =KeyMetrics!C25/'Data Sheet'!C17 -> 0.01909298976 | D42: =KeyMetrics!D25/'Data Sheet'!D17 -> -0.0004438232203 | E42: =KeyMetrics!E25/'Data Sheet'!E17 -> -0.002362376602 | F42: =KeyMetrics!F25/'Data Sheet'!F17 -> -0.05540473325 | G42: =KeyMetrics!G25/'Data Sheet'!G17 -> 0.011780877 | H42: =KeyMetrics!H25/'Data Sheet'!H17 -> 0.03767476866 | I42: =KeyMetrics!I25/'Data Sheet'!I17 -> 0.031329945 | J42: =KeyMetrics!J25/'Data Sheet'!J17 -> 0.04006504382 | K42: =KeyMetrics!K25/'Data Sheet'!K17 -> 0.06970208845
A44: Sales/Invested Capital =Capital Turns | B44: ='Data Sheet'!B17/KeyMetrics!B14 -> 2.218056453 | C44: ='Data Sheet'!C17/KeyMetrics!C14 -> 2.805995475 | D44: ='Data Sheet'!D17/KeyMetrics!D14 -> 1.833007048 | E44: ='Data Sheet'!E17/KeyMetrics!E14 -> 1.559204745 | F44: ='Data Sheet'!F17/KeyMetrics!F14 -> 0.957549121 | G44: ='Data Sheet'!G17/KeyMetrics!G14 -> 1.600177659 | H44: ='Data Sheet'!H17/KeyMetrics!H14 -> 1.958256901 | I44: ='Data Sheet'!I17/KeyMetrics!I14 -> 1.903598701 | J44: ='Data Sheet'!J17/KeyMetrics!J14 -> 1.961437224 | K44: ='Data Sheet'!K17/KeyMetrics!K14 -> 1.857749121
A45: Sales/Fixed Assets= Fixed Asset Turns | B45: ='Data Sheet'!B17/'Data Sheet'!B62 -> 18.99261993 | C45: ='Data Sheet'!C17/'Data Sheet'!C62 -> 17.74955277 | D45: ='Data Sheet'!D17/'Data Sheet'!D62 -> 4.693233083 | E45: ='Data Sheet'!E17/'Data Sheet'!E62 -> 8.740763547 | F45: ='Data Sheet'!F17/'Data Sheet'!F62 -> 1.3712699 | G45: ='Data Sheet'!G17/'Data Sheet'!G62 -> 2.532546042 | H45: ='Data Sheet'!H17/'Data Sheet'!H62 -> 3.203703704 | I45: ='Data Sheet'!I17/'Data Sheet'!I62 -> 3.324565281 | J45: ='Data Sheet'!J17/'Data Sheet'!J62 -> 4.720293063 | K45: ='Data Sheet'!K17/'Data Sheet'!K62 -> 5.363728676
A46: Sales/Total Assets= Asset Turns | B46: ='Data Sheet'!B17/KeyMetrics!B16 -> 1.605176984 | C46: ='Data Sheet'!C17/KeyMetrics!C16 -> 1.644893899 | D46: ='Data Sheet'!D17/KeyMetrics!D16 -> 1.442458789 | E46: ='Data Sheet'!E17/KeyMetrics!E16 -> 1.127392582 | F46: ='Data Sheet'!F17/KeyMetrics!F16 -> 0.7520100707 | G46: ='Data Sheet'!G17/KeyMetrics!G16 -> 1.172328518 | H46: ='Data Sheet'!H17/KeyMetrics!H16 -> 1.304979129 | I46: ='Data Sheet'!I17/KeyMetrics!I16 -> 1.385056942 | J46: ='Data Sheet'!J17/KeyMetrics!J16 -> 1.671350592 | K46: ='Data Sheet'!K17/KeyMetrics!K16 -> 1.571833836
A47: Net Margin*Asset Turns= RoA | B47: =B39*B46 -> 0.08061749571 | C47: =C39*C46 -> 0.09631962865 | D47: 0.09074102604 | E47: 0.07807163847 | F47: 0.03894258101 | G47: 0.06556683587 | H47: 0.09466308885 | I47: 0.1039997544 | J47: 0.1473544831 | K47: 0.1950285669 | L47: Check back what is really driving RoA (Net Margins or Asset Turns, or both)
A48: Net Margin*Asset Turn*Fin Leverage= RoE | B48: =B39*B46*B19 -> 0.1358024691 | C48: 0.1351477088 | D48: 0.1346593507 | E48: 0.1857169847 | F48: 0.1533663841 | G48: 0.2451934777 | H48: 0.2806257734 | I48: 0.231420765 | J48: 0.2716855164 | K48: 0.3296227997 | L48: Check back what is really driving RoE (Net Margins, Asset Turns, or Financial Leverage)
A49: RoCE | B49: =KeyMetrics!B6/KeyMetrics!B15 -> 0.1890135854 | C49: =KeyMetrics!C6/KeyMetrics!C15 -> 0.1962377084 | D49: =KeyMetrics!D6/KeyMetrics!D15 -> 0.1590342978 | E49: =KeyMetrics!E6/KeyMetrics!E15 -> 0.1605998044 | F49: =KeyMetrics!F6/KeyMetrics!F15 -> 0.0984613796 | G49: =KeyMetrics!G6/KeyMetrics!G15 -> 0.2068674859 | H49: =KeyMetrics!H6/KeyMetrics!H15 -> 0.2588235294 | I49: =KeyMetrics!I6/KeyMetrics!I15 -> 0.2519734028 | J49: =KeyMetrics!J6/KeyMetrics!J15 -> 0.3055291358 | K49: =KeyMetrics!K6/KeyMetrics!K15 -> 0.3441008931
A50: EBIT Margin*Cap Turns*(1-Tax rate)= RoIC | B50: =B36*B44*(1-KeyMetrics!B21) -> 0.1219412421 | C50: =C36*C44*(1-KeyMetrics!C21) -> 0.1735748429 | D50: =D36*D44*(1-KeyMetrics!D21) -> 0.1191864689 | E50: =E36*E44*(1-KeyMetrics!E21) -> 0.1163165712 | F50: =F36*F44*(1-KeyMetrics!F21) -> 0.06694724637 | G50: =G36*G44*(1-KeyMetrics!G21) -> 0.1388514962 | H50: =H36*H44*(1-KeyMetrics!H21) -> 0.1937768757 | I50: =I36*I44*(1-KeyMetrics!I21) -> 0.1796396426 | J50: =J36*J44*(1-KeyMetrics!J21) -> 0.1985850683 | K50: =K36*K44*(1-KeyMetrics!K21) -> 0.2494889935 | L50: Check back what is really driving RoIC (Op Margins or Capital Turns, or both)
A52: Altman Z-Score | B52: =KeyMetrics!B46 -> 3.15806849 | C52: =KeyMetrics!C46 -> 3.206220011 | D52: =KeyMetrics!D46 -> 2.84671952 | E52: =KeyMetrics!E46 -> 2.140485003 | F52: =KeyMetrics!F46 -> 1.479690232 | G52: =KeyMetrics!G46 -> 2.353558069 | H52: =KeyMetrics!H46 -> 3.050080689 | I52: =KeyMetrics!I46 -> 3.313873142 | J52: =KeyMetrics!J46 -> 5.390980042 | K52: =KeyMetrics!K46 -> 5.986275419
A53: Dividend Payout | B53: ='Data Sheet'!B31/'Data Sheet'!B30 -> 0.08123791103 | C53: ='Data Sheet'!C31/'Data Sheet'!C30 -> 0.1325301205 | D53: ='Data Sheet'!D31/'Data Sheet'!D30 -> 0.08658743633 | E53: ='Data Sheet'!E31/'Data Sheet'!E30 -> 0.0518819939 | F53: ='Data Sheet'!F31/'Data Sheet'!F30 -> 0 | G53: ='Data Sheet'!G31/'Data Sheet'!G30 -> 0.02084367246 | H53: ='Data Sheet'!H31/'Data Sheet'!H30 -> 0.02015748031 | I53: ='Data Sheet'!I31/'Data Sheet'!I30 -> 0.01505312869 | J53: ='Data Sheet'!J31/'Data Sheet'!J30 -> 0.01173665872 | K53: ='Data Sheet'!K31/'Data Sheet'!K30 -> 0.006510019327
A54: Cash/Assets | B54: ='Data Sheet'!B69/'Data Sheet'!B61 -> 0.01356619367 | C54: ='Data Sheet'!C69/'Data Sheet'!C61 -> 0.03431697613 | D54: ='Data Sheet'!D69/'Data Sheet'!D61 -> 0.0167924819 | E54: ='Data Sheet'!E69/'Data Sheet'!E61 -> 0.01278691129 | F54: ='Data Sheet'!F69/'Data Sheet'!F61 -> 0.01778607975 | G54: ='Data Sheet'!G69/'Data Sheet'!G61 -> 0.01594429259 | H54: ='Data Sheet'!H69/'Data Sheet'!H61 -> 0.01383422779 | I54: ='Data Sheet'!I69/'Data Sheet'!I61 -> 0.01157258188 | J54: ='Data Sheet'!J69/'Data Sheet'!J61 -> 0.009079608712 | K54: ='Data Sheet'!K69/'Data Sheet'!K61 -> 0.009899222346
A55: EBIT/Invested Capital | B55: =KeyMetrics!B6/KeyMetrics!B14 -> 0.2068519716 | C55: =KeyMetrics!C6/KeyMetrics!C14 -> 0.2596153846 | D55: =KeyMetrics!D6/KeyMetrics!D14 -> 0.1624902114 | E55: =KeyMetrics!E6/KeyMetrics!E14 -> 0.1623462214 | F55: =KeyMetrics!F6/KeyMetrics!F14 -> 0.09860392968 | G55: =KeyMetrics!G6/KeyMetrics!G14 -> 0.2071063735 | H55: =KeyMetrics!H6/KeyMetrics!H14 -> 0.2933202094 | I55: =KeyMetrics!I6/KeyMetrics!I14 -> 0.2733831161 | J55: =KeyMetrics!J6/KeyMetrics!J14 -> 0.3056163384 | K55: =KeyMetrics!K6/KeyMetrics!K14 -> 0.3441735053 | L55: Check back the significant role of EBIT/Invested Capital
A56: EPA | B56: =KeyMetrics!B25 -> 0.09009304447 | C56: =KeyMetrics!C25 -> 1.894406444 | D56: =KeyMetrics!D25 -> -0.04155516812 | E56: =KeyMetrics!E25 -> -0.3353393586 | F56: =KeyMetrics!F25 -> -10.26040255 | G56: =KeyMetrics!G25 -> 4.244414366 | H56: =KeyMetrics!H25 -> 16.4898695 | I56: =KeyMetrics!I25 -> 14.13638448 | J56: =KeyMetrics!J25 -> 24.7802296 | K56: =KeyMetrics!K25 -> 55.22705574 | L56: Check back what is really driving EPA (Invested Capital or RoIC, or both)
A57: MktCap | B57: =KeyMetrics!B27 -> 20.11488711 | C57: =KeyMetrics!C27 -> 35.17531846 | D57: =KeyMetrics!D27 -> 38.01427342 | E57: =KeyMetrics!E27 -> 56.50077781 | F57: =KeyMetrics!F27 -> 54.7025275 | G57: =KeyMetrics!G27 -> 137.8841094 | H57: =KeyMetrics!H27 -> 371.9017719 | I57: =KeyMetrics!I27 -> 411.4474225 | J57: =KeyMetrics!J27 -> 1272.185124 | K57: =KeyMetrics!K27 -> 2130.197855
A58: MktCap Change | C58: =C57-B57 -> 15.06043135 | D58: =D57-C57 -> 2.838954959 | E58: 18.48650439 | F58: -1.798250314 | G58: 83.18158189 | H58: 234.0176625 | I58: 39.5456506 | J58: 860.7377017 | K58: 858.012731
A59: MktCap Change - EPA | C59: =C58-C56 -> 13.16602491 | D59: 2.880510127 | E59: 18.82184375 | F59: 8.462152238 | G59: 78.93716753 | H59: 217.527793 | I59: 25.40926612 | J59: 835.9574721 | K59: 802.7856753
A61: Capex/Net Profits 10 yr | B61: =SUM(KeyMetrics!B$19:K$19)/SUM(KeyMetrics!B$9:K$9) -> 0.8950929395
A62: Capex/Net Profits 7 yr | B62: =SUM(KeyMetrics!E$19:K$19)/SUM(KeyMetrics!E$9:K$9) -> 0.8741667958
A63: Capex/Net Profits 5 yr | B63: =SUM(KeyMetrics!G$19:K$19)/SUM(KeyMetrics!G$9:K$9) -> 0.4410778644
A64: Capex/Net Profits 3 yr | B64: =SUM(KeyMetrics!I$19:K$19)/SUM(KeyMetrics!I$9:K$9) -> 0.3558804627
A65: Capex/Depreciation 10 yr | B65: =SUM(KeyMetrics!B$19:K$19)/SUM('Data Sheet'!B26:K26) -> 2.522242722

Sheet Data Sheet (hidden)
A1: COMPANY NAME | B1: BHARAT RASAYAN LTD | E1: =IF(B2<>B3, "A NEW VERSION OF THE WORKSHEET IS AVAILABLE", "") -> 
A2: LATEST VERSION | B2: 2.1 | E2: PLEASE DO NOT MAKE ANY CHANGES TO THIS SHEET
A3: CURRENT VERSION | B3: 2.1
A5: META
A6: Number of shares | B6: =IF(B9>0, B9/B8, 0) -> 0.4250006085
A7: Face Value | B7: 10
A8: Current Price | B8: 4108.3
A9: Market Capitalization | B9: 1746.03
A15: PROFIT & LOSS
A16: Report Date | B16: 2009-03-31 | C16: 2010-03-31 | D16: 2011-03-31 | E16: 2012-03-31 | F16: 2013-03-31 | G16: 2014-03-31 | H16: 2015-03-31 | I16: 2016-03-31 | J16: 2017-03-31 | K16: 2018-03-31
A17: Sales | B17: 102.94 | C17: 99.22 | D17: 93.63 | E17: 141.95 | F17: 185.19 | G17: 360.28 | H17: 437.69 | I17: 451.21 | J17: 618.5 | K17: 792.33
A18: Raw Material Cost | B18: 74.37 | C18: 71.03 | D18: 58.12 | E18: 99.9 | F18: 139.09 | G18: 256.34 | H18: 281.09 | I18: 293.95 | J18: 425.4 | K18: 521.59
A19: Change in Inventory | B19: -0.22 | C19: 0.59 | D19: -5.34 | E19: 6.09 | F19: 13.65 | G19: 21.25 | H19: -6.14 | I19: 1.71 | J19: 15.72 | K19: -0.76
A20: Power and Fuel | B20: 1.52 | C20: 1.59 | D20: 2.96 | E20: 3 | F20: 5.71 | G20: 9.8 | H20: 10.4 | I20: 12.77 | J20: 15.31 | K20: 17.9
A21: Other Mfr. Exp | B21: 9.93 | C21: 8.4 | D21: 4.18 | E21: 11.61 | F21: 9.47 | G21: 13.41 | H21: 17.94 | I21: 20.82 | J21: 24.72 | K21: 28.74
A22: Employee Cost | B22: 4.21 | C22: 4.93 | D22: 6.97 | E22: 7.29 | F22: 11.12 | G22: 20.44 | H22: 23.23 | I22: 27.19 | J22: 31.51 | K22: 35.25
A23: Selling and admin | B23: 5.64 | C23: 7.2 | D23: 7.42 | E23: 8.61 | F23: 10.04 | G23: 14.77 | H23: 16.92 | I23: 20.41 | J23: 24.57 | K23: 32.15
A24: Other Expenses | B24: 0.68 | C24: 0.25 | D24: 2.09 | E24: 0.94 | F24: -2.32 | G24: 3.01 | H24: -0.43 | I24: -3.39 | J24: 2.08 | K24: 2.53
A25: Other Income | B25: 4.12 | C25: 3.65 | D25: 3.56 | E25: -0.29 | F25: 0.18 | G25: 0.64 | H25: 0.86 | I25: 0.6 | J25: 1.96 | K25: 9.79
A26: Depreciation | B26: 0.93 | C26: 0.88 | D26: 1.81 | E26: 1.62 | F26: 6.88 | G26: 17.83 | H26: 17.73 | I26: 17.03 | J26: 16.43 | K26: 16.42
A27: Interest | B27: 0.83 | C27: 0.49 | D27: 0.27 | E27: 1.06 | F27: 4.96 | G27: 16.56 | H27: 17.5 | I27: 13.24 | J27: 12.45 | K27: 11.17
A28: Profit before tax | B28: 8.77 | C28: 8.69 | D28: 8.03 | E28: 13.72 | F28: 14.11 | G28: 30.07 | H28: 48.06 | I28: 51.56 | J28: 83.92 | K28: 135.62
A29: Tax | B29: 3.6 | C29: 2.88 | D29: 2.14 | E29: 3.89 | F29: 4.53 | G29: 9.91 | H29: 16.31 | I29: 17.68 | J29: 29.39 | K29: 37.31
A30: Net profit | B30: 5.17 | C30: 5.81 | D30: 5.89 | E30: 9.83 | F30: 9.59 | G30: 20.15 | H30: 31.75 | I30: 33.88 | J30: 54.53 | K30: 98.31
A31: Dividend Amount | B31: 0.42 | C31: 0.77 | D31: 0.51 | E31: 0.51 | G31: 0.42 | H31: 0.64 | I31: 0.51 | J31: 0.64 | K31: 0.64
A40: Quarters
A41: Report Date | B41: 2016-12-31 | C41: 2017-03-31 | D41: 2017-06-30 | E41: 2017-09-30 | F41: 2017-12-31 | G41: 2018-03-31 | H41: 2018-06-30 | I41: 2018-09-30 | J41: 2018-12-31 | K41: 2019-03-31
A42: Sales | B42: 130.15 | C42: 132.51 | D42: 169.15 | E42: 244.06 | F42: 188.66 | G42: 193.44 | H42: 245.12 | I42: 285.27 | J42: 189.56 | K42: 272.23
A43: Expenses | B43: 107.56 | C43: 101.01 | D43: 139.41 | E43: 198.74 | F43: 143.77 | G43: 155.2 | H43: 204.1 | I43: 226.5 | J43: 150.13 | K43: 224.35
A44: Other Income | B44: 2.5 | C44: -5.12 | D44: 0.68 | E44: -0.18 | F44: -2.62 | G44: 6.62 | H44: 1.78 | I44: 0.56 | J44: -0.12 | K44: -1.47
A45: Depreciation | B45: 4.1 | C45: 4.29 | D45: 3.88 | E45: 4.03 | F45: 4.18 | G45: 4.33 | H45: 4.03 | I45: 4.25 | J45: 4.35 | K45: 4.26
A46: Interest | B46: 3.99 | C46: 2.46 | D46: 2.8 | E46: 2.93 | F46: 2.73 | G46: 2.18 | H46: 3.09 | I46: 4.01 | J46: 4.13 | K46: 4.59
A47: Profit before tax | B47: 17 | C47: 19.63 | D47: 23.74 | E47: 38.18 | F47: 35.36 | G47: 38.35 | H47: 35.68 | I47: 51.07 | J47: 30.83 | K47: 37.56
A48: Tax | B48: 5.76 | C48: 7.52 | D48: 8.11 | E48: 14.1 | F48: 12.27 | G48: 2.83 | H48: 10.7 | I48: 15.28 | J48: 9.48 | K48: 8.15
A49: Net profit | B49: 11.24 | C49: 12.11 | D49: 15.63 | E49: 24.08 | F49: 23.09 | G49: 35.52 | H49: 24.98 | I49: 35.79 | J49: 21.35 | K49: 29.41
A50: Operating Profit | B50: 22.59 | C50: 31.5 | D50: 29.74 | E50: 45.32 | F50: 44.89 | G50: 38.24 | H50: 41.02 | I50: 58.77 | J50: 39.43 | K50: 47.88
A55: BALANCE SHEET
A56: Report Date | B56: 2009-03-31 | C56: 2010-03-31 | D56: 2011-03-31 | E56: 2012-03-31 | F56: 2013-03-31 | G56: 2014-03-31 | H56: 2015-03-31 | I56: 2016-03-31 | J56: 2017-03-31 | K56: 2018-03-31
A57: Equity Share Capital | B57: 4.25 | C57: 4.25 | D57: 4.25 | E57: 4.25 | F57: 4.25 | G57: 4.25 | H57: 4.25 | I57: 4.25 | J57: 4.25 | K57: 4.25
A58: Reserves | B58: 33.82 | C58: 38.74 | D58: 39.49 | E58: 48.68 | F58: 58.28 | G58: 77.93 | H58: 108.89 | I58: 142.15 | J58: 196.46 | K58: 294
A59: Borrowings | B59: 12.72 | C59: 3.79 | D59: 8.45 | E59: 39.1 | F59: 131.15 | G59: 143.23 | H59: 140.16 | I59: 110.77 | J59: 114.71 | K59: 128.34
A60: Other Liabilities | B60: 13.34 | C60: 13.54 | D60: 12.72 | E60: 33.88 | F60: 52.58 | G60: 81.91 | H60: 82.1 | I60: 68.6 | J60: 54.64 | K60: 77.49
A61: Total | B61: 64.13 | C61: 60.32 | D61: 64.91 | E61: 125.91 | F61: 246.26 | G61: 307.32 | H61: 335.4 | I61: 325.77 | J61: 370.06 | K61: 504.08
A62: Net Block | B62: 5.42 | C62: 5.59 | D62: 19.95 | E62: 16.24 | F62: 135.05 | G62: 142.26 | H62: 136.62 | I62: 135.72 | J62: 131.03 | K62: 147.72
A63: Capital Work in Progress | D63: 3.28 | E63: 48.27 | G63: 0.57 | H63: 1.67 | I63: 0.54 | J63: 1.21 | K63: 7.14
A64: Investments | B64: 4.38 | C64: 11.42 | D64: 1.11 | E64: 0.99 | F64: 0.28 | G64: 0.26 | H64: 29.79 | I64: 20.14 | J64: 0.09 | K64: 0.09
A65: Other Assets | B65: 54.33 | C65: 43.31 | D65: 40.57 | E65: 60.41 | F65: 110.93 | G65: 164.23 | H65: 167.32 | I65: 169.37 | J65: 237.73 | K65: 349.13
A66: Total | B66: 64.13 | C66: 60.32 | D66: 64.91 | E66: 125.91 | F66: 246.26 | G66: 307.32 | H66: 335.4 | I66: 325.77 | J66: 370.06 | K66: 504.08
A67: Receivables | B67: 22.26 | C67: 16.92 | D67: 15.93 | E67: 30.04 | F67: 45.02 | G67: 60.41 | H67: 79.53 | I67: 88.17 | J67: 120.15 | K67: 221.61
A68: Inventory | B68: 11.24 | C68: 13.58 | D68: 11.82 | E68: 16.71 | F68: 37.26 | G68: 67.43 | H68: 57.39 | I68: 56.75 | J68: 83.86 | K68: 94.17
A69: Cash & Bank | B69: 0.87 | C69: 2.07 | D69: 1.09 | E69: 1.61 | F69: 4.38 | G69: 4.9 | H69: 4.64 | I69: 3.77 | J69: 3.36 | K69: 4.99
A70: No. of Equity Shares | B70: 4248740 | C70: 4248740 | D70: 4248740 | E70: 4248740 | F70: 4248740 | G70: 4248740 | H70: 4248740 | I70: 4248740 | J70: 4248740 | K70: 4248740
A71: New Bonus Shares
A72: Face value | B72: 10 | C72: 10 | D72: 10 | E72: 10 | F72: 10 | G72: 10 | H72: 10 | I72: 10 | J72: 10 | K72: 10
A80: CASH FLOW:
A81: Report Date | B81: 2009-03-31 | C81: 2010-03-31 | D81: 2011-03-31 | E81: 2012-03-31 | F81: 2013-03-31 | G81: 2014-03-31 | H81: 2015-03-31 | I81: 2016-03-31 | J81: 2017-03-31 | K81: 2018-03-31
A82: Cash from Operating Activity | B82: -2.23 | C82: 18.76 | D82: 10.07 | E82: 12.54 | F82: -7.55 | G82: 28.52 | H82: 59.71 | I82: 46.73 | J82: 15.78 | K82: 28.81
A83: Cash from Investing Activity | B83: -3.99 | C83: -8.05 | D83: -6.93 | E83: -41.81 | F83: -76.69 | G83: -25.36 | H83: -40.97 | I83: -4.99 | J83: 7.77 | K83: -30.85
A84: Cash from Financing Activity | B84: 4.86 | C84: -9.62 | D84: -5.23 | E84: 29.79 | F84: 87.01 | G84: -2.65 | H84: -18.98 | I84: -42.62 | J84: -23.9 | K84: 2.23
A85: Net Cash Flow | B85: -1.36 | C85: 1.09 | D85: -2.09 | E85: 0.52 | F85: 2.77 | G85: 0.51 | H85: -0.25 | I85: -0.88 | J85: -0.34 | K85: 0.18
A90: PRICE: | B90: 47.343182 | C90: 82.79 | D90: 89.471875 | E90: 132.982432 | F90: 128.75 | G90: 324.529412 | H90: 875.3225 | I90: 968.398684 | J90: 2994.264474 | K90: 5013.716667
A92: DERIVED:
A93: Adjusted Equity Shares in Cr | B93: =IF($B7>0,(B70*B72/$B7)+SUM(C71:$K71),0)/10000000 -> 0.424874 | C93: =IF($B7>0,(C70*C72/$B7)+SUM(D71:$K71),0)/10000000 -> 0.424874 | D93: =IF($B7>0,(D70*D72/$B7)+SUM(E71:$K71),0)/10000000 -> 0.424874 | E93: =IF($B7>0,(E70*E72/$B7)+SUM(F71:$K71),0)/10000000 -> 0.424874 | F93: =IF($B7>0,(F70*F72/$B7)+SUM(G71:$K71),0)/10000000 -> 0.424874 | G93: =IF($B7>0,(G70*G72/$B7)+SUM(H71:$K71),0)/10000000 -> 0.424874 | H93: =IF($B7>0,(H70*H72/$B7)+SUM(I71:$K71),0)/10000000 -> 0.424874 | I93: =IF($B7>0,(I70*I72/$B7)+SUM(J71:$K71),0)/10000000 -> 0.424874 | J93: =IF($B7>0,(J70*J72/$B7)+SUM(K71:$K71),0)/10000000 -> 0.424874 | K93: =IF($B7>0,(K70*K72/$B7),0)/10000000 -> 0.424874

Sheet KeyMetrics
A1: ='Data Sheet'!B1 -> BHARAT RASAYAN LTD
P2: PETER LYNCH KPIs
B3: ='Data Sheet'!B16 -> 2009-03-31 | C3: ='Data Sheet'!C16 -> 2010-03-31 | D3: ='Data Sheet'!D16 -> 2011-03-31 | E3: ='Data Sheet'!E16 -> 2012-03-31 | F3: ='Data Sheet'!F16 -> 2013-03-31 | G3: ='Data Sheet'!G16 -> 2014-03-31 | H3: ='Data Sheet'!H16 -> 2015-03-31 | I3: ='Data Sheet'!I16 -> 2016-03-31 | J3: ='Data Sheet'!J16 -> 2017-03-31 | K3: ='Data Sheet'!K16 -> 2018-03-31 | P3: Current Price | Q3: ='Data Sheet'!B8 -> 4108.3
A4: Gross Profit | B4: ='Data Sheet'!B17-'Data Sheet'!B18 -> 28.57 | C4: ='Data Sheet'!C17-'Data Sheet'!C18 -> 28.19 | D4: ='Data Sheet'!D17-'Data Sheet'!D18 -> 35.51 | E4: ='Data Sheet'!E17-'Data Sheet'!E18 -> 42.05 | F4: ='Data Sheet'!F17-'Data Sheet'!F18 -> 46.1 | G4: ='Data Sheet'!G17-'Data Sheet'!G18 -> 103.94 | H4: ='Data Sheet'!H17-'Data Sheet'!H18 -> 156.6 | I4: ='Data Sheet'!I17-'Data Sheet'!I18 -> 157.26 | J4: ='Data Sheet'!J17-'Data Sheet'!J18 -> 193.1 | K4: ='Data Sheet'!K17-'Data Sheet'!K18 -> 270.74 | P4: Cash Held Per Share | Q4: =KeyMetrics!K94/'Data Sheet'!B6 -> 11.95292406
A5: Gross Margin | B5: =B4/'Data Sheet'!B17 -> 0.2775403147 | C5: =C4/'Data Sheet'!C17 -> 0.2841161056 | D5: =D4/'Data Sheet'!D17 -> 0.3792587846 | E5: =E4/'Data Sheet'!E17 -> 0.2962310673 | F5: =F4/'Data Sheet'!F17 -> 0.2489335277 | G5: =G4/'Data Sheet'!G17 -> 0.288497835 | H5: =H4/'Data Sheet'!H17 -> 0.3577874752 | I5: =I4/'Data Sheet'!I17 -> 0.3485295095 | J5: =J4/'Data Sheet'!J17 -> 0.3122069523 | K5: =K4/'Data Sheet'!K17 -> 0.3417010589 | P5: Dividend Paid | Q5: =KeyMetrics!K91/'Data Sheet'!B6 -> 1.505880197
A6: EBIT | B6: ='Data Sheet'!B28+'Data Sheet'!B27 -> 9.6 | C6: ='Data Sheet'!C28+'Data Sheet'!C27 -> 9.18 | D6: ='Data Sheet'!D28+'Data Sheet'!D27 -> 8.3 | E6: ='Data Sheet'!E28+'Data Sheet'!E27 -> 14.78 | F6: ='Data Sheet'!F28+'Data Sheet'!F27 -> 19.07 | G6: ='Data Sheet'!G28+'Data Sheet'!G27 -> 46.63 | H6: ='Data Sheet'!H28+'Data Sheet'!H27 -> 65.56 | I6: ='Data Sheet'!I28+'Data Sheet'!I27 -> 64.8 | J6: ='Data Sheet'!J28+'Data Sheet'!J27 -> 96.37 | K6: ='Data Sheet'!K28+'Data Sheet'!K27 -> 146.79 | P6: Dividend Payout (%) | Q6: =KeyMetrics!K92 -> 0.006510019327
A7: EBITDA | B7: =KeyMetrics!B6+'Data Sheet'!B26 -> 10.53 | C7: =KeyMetrics!C6+'Data Sheet'!C26 -> 10.06 | D7: =KeyMetrics!D6+'Data Sheet'!D26 -> 10.11 | E7: =KeyMetrics!E6+'Data Sheet'!E26 -> 16.4 | F7: =KeyMetrics!F6+'Data Sheet'!F26 -> 25.95 | G7: =KeyMetrics!G6+'Data Sheet'!G26 -> 64.46 | H7: =KeyMetrics!H6+'Data Sheet'!H26 -> 83.29 | I7: =KeyMetrics!I6+'Data Sheet'!I26 -> 81.83 | J7: =KeyMetrics!J6+'Data Sheet'!J26 -> 112.8 | K7: =KeyMetrics!K6+'Data Sheet'!K26 -> 163.21 | P7: Current EPS | Q7: =KeyMetrics!K65/'Data Sheet'!B6 -> 231.3173159
A8: Operating Profit (excl Other Income) | B8: =B7-'Data Sheet'!B25 -> 6.41 | C8: =C7-'Data Sheet'!C25 -> 6.41 | D8: =D7-'Data Sheet'!D25 -> 6.55 | E8: =E7-'Data Sheet'!E25 -> 16.69 | F8: =F7-'Data Sheet'!F25 -> 25.77 | G8: =G7-'Data Sheet'!G25 -> 63.82 | H8: =H7-'Data Sheet'!H25 -> 82.43 | I8: =I7-'Data Sheet'!I25 -> 81.23 | J8: =J7-'Data Sheet'!J25 -> 110.84 | K8: =K7-'Data Sheet'!K25 -> 153.42 | P8: Cash EPS | Q8: =KeyMetrics!K104/'Data Sheet'!B6 -> 67.78813823
A9: PAT | B9: ='Data Sheet'!B30 -> 5.17 | C9: ='Data Sheet'!C30 -> 5.81 | D9: ='Data Sheet'!D30 -> 5.89 | E9: ='Data Sheet'!E30 -> 9.83 | F9: ='Data Sheet'!F30 -> 9.59 | G9: ='Data Sheet'!G30 -> 20.15 | H9: ='Data Sheet'!H30 -> 31.75 | I9: ='Data Sheet'!I30 -> 33.88 | J9: ='Data Sheet'!J30 -> 54.53 | K9: ='Data Sheet'!K30 -> 98.31 | P9: Cash Yield on CMP | Q9: =Q8/Q3 -> 0.01650028923
A10: Dividend | B10: ='Data Sheet'!B31 -> 0.42 | C10: ='Data Sheet'!C31 -> 0.77 | D10: ='Data Sheet'!D31 -> 0.51 | E10: ='Data Sheet'!E31 -> 0.51 | F10: ='Data Sheet'!F31 -> 0 | G10: ='Data Sheet'!G31 -> 0.42 | H10: ='Data Sheet'!H31 -> 0.64 | I10: ='Data Sheet'!I31 -> 0.51 | J10: ='Data Sheet'!J31 -> 0.64 | K10: ='Data Sheet'!K31 -> 0.64
B11: =B3 -> 2009-03-31 | C11: 2010-03-31 | D11: 2011-03-31 | E11: 2012-03-31 | F11: 2013-03-31 | G11: 2014-03-31 | H11: 2015-03-31 | I11: 2016-03-31 | J11: 2017-03-31 | K11: 2018-03-31 | P11: A) NET PROFIT MARGIN | Q11: =KeyMetrics!K66 -> 0.1240770891
A12: Networth | B12: ='Data Sheet'!B57+'Data Sheet'!B58 -> 38.07 | C12: ='Data Sheet'!C57+'Data Sheet'!C58 -> 42.99 | D12: ='Data Sheet'!D57+'Data Sheet'!D58 -> 43.74 | E12: ='Data Sheet'!E57+'Data Sheet'!E58 -> 52.93 | F12: ='Data Sheet'!F57+'Data Sheet'!F58 -> 62.53 | G12: ='Data Sheet'!G57+'Data Sheet'!G58 -> 82.18 | H12: ='Data Sheet'!H57+'Data Sheet'!H58 -> 113.14 | I12: ='Data Sheet'!I57+'Data Sheet'!I58 -> 146.4 | J12: ='Data Sheet'!J57+'Data Sheet'!J58 -> 200.71 | K12: ='Data Sheet'!K57+'Data Sheet'!K58 -> 298.25 | P12: B) ASSET TURNOVER | Q12: =KeyMetrics!K45 -> 1.571833836
A13: Working Capital | B13: ='Data Sheet'!B65-'Data Sheet'!B60 -> 40.99 | C13: ='Data Sheet'!C65-'Data Sheet'!C60 -> 29.77 | D13: ='Data Sheet'!D65-'Data Sheet'!D60 -> 27.85 | E13: ='Data Sheet'!E65-'Data Sheet'!E60 -> 26.53 | F13: ='Data Sheet'!F65-'Data Sheet'!F60 -> 58.35 | G13: ='Data Sheet'!G65-'Data Sheet'!G60 -> 82.32 | H13: ='Data Sheet'!H65-'Data Sheet'!H60 -> 85.22 | I13: ='Data Sheet'!I65-'Data Sheet'!I60 -> 100.77 | J13: ='Data Sheet'!J65-'Data Sheet'!J60 -> 183.09 | K13: ='Data Sheet'!K65-'Data Sheet'!K60 -> 271.64 | P13: C) LEVERAGE | Q13: =(KeyMetrics!K96+KeyMetrics!K97)/KeyMetrics!K97 -> 1.430310142
A14: Invested Capital | B14: ='Data Sheet'!B62+'Data Sheet'!B63+KeyMetrics!B13 -> 46.41 | C14: ='Data Sheet'!C62+'Data Sheet'!C63+KeyMetrics!C13 -> 35.36 | D14: ='Data Sheet'!D62+'Data Sheet'!D63+KeyMetrics!D13 -> 51.08 | E14: ='Data Sheet'!E62+'Data Sheet'!E63+KeyMetrics!E13 -> 91.04 | F14: ='Data Sheet'!F62+'Data Sheet'!F63+KeyMetrics!F13 -> 193.4 | G14: ='Data Sheet'!G62+'Data Sheet'!G63+KeyMetrics!G13 -> 225.15 | H14: ='Data Sheet'!H62+'Data Sheet'!H63+KeyMetrics!H13 -> 223.51 | I14: ='Data Sheet'!I62+'Data Sheet'!I63+KeyMetrics!I13 -> 237.03 | J14: ='Data Sheet'!J62+'Data Sheet'!J63+KeyMetrics!J13 -> 315.33 | K14: ='Data Sheet'!K62+'Data Sheet'!K63+KeyMetrics!K13 -> 426.5 | P14: ROE = A X B X C | Q14: =Q11*Q12*Q13 -> 0.2789513373
A15: Capital Employed | B15: =B12+'Data Sheet'!B59 -> 50.79 | C15: =C12+'Data Sheet'!C59 -> 46.78 | D15: =D12+'Data Sheet'!D59 -> 52.19 | E15: =E12+'Data Sheet'!E59 -> 92.03 | F15: =F12+'Data Sheet'!F59 -> 193.68 | G15: =G12+'Data Sheet'!G59 -> 225.41 | H15: =H12+'Data Sheet'!H59 -> 253.3 | I15: =I12+'Data Sheet'!I59 -> 257.17 | J15: =J12+'Data Sheet'!J59 -> 315.42 | K15: =K12+'Data Sheet'!K59 -> 426.59
A16: Total Assets | B16: ='Data Sheet'!B61 -> 64.13 | C16: ='Data Sheet'!C61 -> 60.32 | D16: ='Data Sheet'!D61 -> 64.91 | E16: ='Data Sheet'!E61 -> 125.91 | F16: ='Data Sheet'!F61 -> 246.26 | G16: ='Data Sheet'!G61 -> 307.32 | H16: ='Data Sheet'!H61 -> 335.4 | I16: ='Data Sheet'!I61 -> 325.77 | J16: ='Data Sheet'!J61 -> 370.06 | K16: ='Data Sheet'!K61 -> 504.08 | P16: Price/Earnings | Q16: =Q3/Q7 -> 17.76045163
B17: =B3 -> 2009-03-31 | C17: 2010-03-31 | D17: 2011-03-31 | E17: 2012-03-31 | F17: 2013-03-31 | G17: 2014-03-31 | H17: 2015-03-31 | I17: 2016-03-31 | J17: 2017-03-31 | K17: 2018-03-31 | P17: Cash Adjusted P/E ratio | Q17: =(Q3-Q4)/Q7 -> 17.70877835
A18: Operating Cash Flow | B18: ='Data Sheet'!B82 -> -2.23 | C18: ='Data Sheet'!C82 -> 18.76 | D18: ='Data Sheet'!D82 -> 10.07 | E18: ='Data Sheet'!E82 -> 12.54 | F18: ='Data Sheet'!F82 -> -7.55 | G18: ='Data Sheet'!G82 -> 28.52 | H18: ='Data Sheet'!H82 -> 59.71 | I18: ='Data Sheet'!I82 -> 46.73 | J18: ='Data Sheet'!J82 -> 15.78 | K18: ='Data Sheet'!K82 -> 28.81 | P18: Price/Book Value | Q18: =Q3/(KeyMetrics!K97/'Data Sheet'!B6) -> 5.85424979
A19: Capex | C19: =('Data Sheet'!C62-'Data Sheet'!B62)+('Data Sheet'!C63-'Data Sheet'!B63)+'Data Sheet'!C26 -> 1.05 | D19: =('Data Sheet'!D62-'Data Sheet'!C62)+('Data Sheet'!D63-'Data Sheet'!C63)+'Data Sheet'!D26 -> 19.45 | E19: =('Data Sheet'!E62-'Data Sheet'!D62)+('Data Sheet'!E63-'Data Sheet'!D63)+'Data Sheet'!E26 -> 42.9 | F19: =('Data Sheet'!F62-'Data Sheet'!E62)+('Data Sheet'!F63-'Data Sheet'!E63)+'Data Sheet'!F26 -> 77.42 | G19: =('Data Sheet'!G62-'Data Sheet'!F62)+('Data Sheet'!G63-'Data Sheet'!F63)+'Data Sheet'!G26 -> 25.61 | H19: =('Data Sheet'!H62-'Data Sheet'!G62)+('Data Sheet'!H63-'Data Sheet'!G63)+'Data Sheet'!H26 -> 13.19 | I19: =('Data Sheet'!I62-'Data Sheet'!H62)+('Data Sheet'!I63-'Data Sheet'!H63)+'Data Sheet'!I26 -> 15 | J19: =('Data Sheet'!J62-'Data Sheet'!I62)+('Data Sheet'!J63-'Data Sheet'!I63)+'Data Sheet'!J26 -> 12.41 | K19: =('Data Sheet'!K62-'Data Sheet'!J62)+('Data Sheet'!K63-'Data Sheet'!J63)+'Data Sheet'!K26 -> 39.04 | P19: Dividend Yield | Q19: =Q5/Q3 -> 0.0003665458211
A20: Free Cash Flow | C20: =C18-C19 -> 17.71 | D20: =D18-D19 -> -9.38 | E20: -30.36 | F20: -84.97 | G20: 2.91 | H20: 46.52 | I20: 31.73 | J20: 3.37 | K20: -10.23 | P20: Earnings Growth | Q20: =Q89/Q88-1 -> 0.8028608106
A21: Tax Rate | B21: ='Data Sheet'!B29/'Data Sheet'!B28 -> 0.4104903079 | C21: ='Data Sheet'!C29/'Data Sheet'!C28 -> 0.33141542 | D21: ='Data Sheet'!D29/'Data Sheet'!D28 -> 0.2665006227 | E21: ='Data Sheet'!E29/'Data Sheet'!E28 -> 0.2835276968 | F21: ='Data Sheet'!F29/'Data Sheet'!F28 -> 0.3210489015 | G21: ='Data Sheet'!G29/'Data Sheet'!G28 -> 0.3295643499 | H21: ='Data Sheet'!H29/'Data Sheet'!H28 -> 0.3393674573 | I21: ='Data Sheet'!I29/'Data Sheet'!I28 -> 0.342901474 | J21: ='Data Sheet'!J29/'Data Sheet'!J28 -> 0.35021449 | K21: ='Data Sheet'!K29/'Data Sheet'!K28 -> 0.2751069164 | P21: Inverse PEG | Q21: =(Q20+Q19)/Q16 -> 0.04522561549
A22: NOPLAT | B22: =B6*(1-B21) -> 5.659293044 | C22: 6.137606444 | D22: 6.088044832 | E22: 10.58946064 | F22: 12.94759745 | G22: 31.26241437 | H22: 43.3110695 | I22: 42.57998448 | J22: 62.6198296 | K22: 106.4070557
A23: RoIC | B23: =(B6/B14)*(1-B21) -> 0.1219412421 | C23: =(C6/C14)*(1-C21) -> 0.1735748429 | D23: 0.1191864689 | E23: 0.1163165712 | F23: 0.06694724637 | G23: 0.1388514962 | H23: 0.1937768757 | I23: 0.1796396426 | J23: 0.1985850683 | K23: 0.2494889935 | P23: Growth Nos:
A24: WACC | B24: 0.12 | C24: 0.12 | D24: 0.12 | E24: 0.12 | F24: 0.12 | G24: 0.12 | H24: 0.12 | I24: 0.12 | J24: 0.12 | K24: 0.12 | P24: 3 Year Sales CAGR | Q24: =RATE(3,,-Q58,Q61,0,) -> 0.2187458743
A25: EPA (Economic Profit Added) | B25: =B14*(B23-B24) -> 0.09009304447 | C25: =C14*(C23-C24) -> 1.894406444 | D25: -0.04155516812 | E25: -0.3353393586 | F25: -10.26040255 | G25: 4.244414366 | H25: 16.4898695 | I25: 14.13638448 | J25: 24.7802296 | K25: 55.22705574 | P25: 3 Years Profit CAGR | Q25: =RATE(3,,-Q86,Q89,0,) -> 0.4575316321
B26: =B3 -> 2009-03-31 | C26: 2010-03-31 | D26: 2011-03-31 | E26: 2012-03-31 | F26: 2013-03-31 | G26: 2014-03-31 | H26: 2015-03-31 | I26: 2016-03-31 | J26: 2017-03-31 | K26: 2018-03-31 | L26: CURRENT | P26: 1 Year Sales Growth | Q26: =RATE(1,,-Q60,Q61,0,) -> 0.2810509297
A27: MktCap | B27: ='Data Sheet'!B90*'Data Sheet'!B93 -> 20.11488711 | C27: ='Data Sheet'!C90*'Data Sheet'!C93 -> 35.17531846 | D27: ='Data Sheet'!D90*'Data Sheet'!D93 -> 38.01427342 | E27: ='Data Sheet'!E90*'Data Sheet'!E93 -> 56.50077781 | F27: ='Data Sheet'!F90*'Data Sheet'!F93 -> 54.7025275 | G27: ='Data Sheet'!G90*'Data Sheet'!G93 -> 137.8841094 | H27: ='Data Sheet'!H90*'Data Sheet'!H93 -> 371.9017719 | I27: ='Data Sheet'!I90*'Data Sheet'!I93 -> 411.4474225 | J27: ='Data Sheet'!J90*'Data Sheet'!J93 -> 1272.185124 | K27: ='Data Sheet'!K90*'Data Sheet'!K93 -> 2130.197855 | L27: ='Data Sheet'!B9 -> 1746.03 | P27: 1 Year EBIT Growth | Q27: =RATE(1,,-Q81,Q82,0,) -> 0.336612624
A28: MktCap+Dividend | B28: =B27+'Data Sheet'!B31 -> 20.53488711 | C28: =C27+'Data Sheet'!C31 -> 35.94531846 | D28: =D27+'Data Sheet'!D31 -> 38.52427342 | E28: =E27+'Data Sheet'!E31 -> 57.01077781 | F28: =F27+'Data Sheet'!F31 -> 54.7025275 | G28: =G27+'Data Sheet'!G31 -> 138.3041094 | H28: =H27+'Data Sheet'!H31 -> 372.5417719 | I28: =I27+'Data Sheet'!I31 -> 411.9574225 | J28: =J27+'Data Sheet'!J31 -> 1272.825124 | K28: =K27+'Data Sheet'!K31 -> 2130.837855 | P28: 1 Year Profit Growth | Q28: =RATE(1,,-Q88,Q89,0,) -> 0.8028608106
A29: Retained Profit | B29: ='Data Sheet'!B30-'Data Sheet'!B31 -> 4.75 | C29: ='Data Sheet'!C30-'Data Sheet'!C31 -> 5.04 | D29: ='Data Sheet'!D30-'Data Sheet'!D31 -> 5.38 | E29: ='Data Sheet'!E30-'Data Sheet'!E31 -> 9.32 | F29: ='Data Sheet'!F30-'Data Sheet'!F31 -> 9.59 | G29: ='Data Sheet'!G30-'Data Sheet'!G31 -> 19.73 | H29: ='Data Sheet'!H30-'Data Sheet'!H31 -> 31.11 | I29: ='Data Sheet'!I30-'Data Sheet'!I31 -> 33.37 | J29: ='Data Sheet'!J30-'Data Sheet'!J31 -> 53.89 | K29: ='Data Sheet'!K30-'Data Sheet'!K31 -> 97.67 | P29: RM/ Sales | Q29: =Q75/Q61 -> 0.6582989411
A30: Shares Outstanding (Mn) | B30: ='Data Sheet'!B70/10^6 -> 4.24874 | C30: ='Data Sheet'!C70/10^6 -> 4.24874 | D30: ='Data Sheet'!D70/10^6 -> 4.24874 | E30: ='Data Sheet'!E70/10^6 -> 4.24874 | F30: ='Data Sheet'!F70/10^6 -> 4.24874 | G30: ='Data Sheet'!G70/10^6 -> 4.24874 | H30: ='Data Sheet'!H70/10^6 -> 4.24874 | I30: ='Data Sheet'!I70/10^6 -> 4.24874 | J30: ='Data Sheet'!J70/10^6 -> 4.24874 | K30: ='Data Sheet'!K70/10^6 -> 4.24874 | P30: 5 yr Avg RM/Sales | Q30: =AVERAGE(Q71/Q57,Q72/Q58,Q73/Q59,Q74/Q60,Q75/Q61) -> 0.6702554338
A31: EPS | B31: =B9/B30*10 -> 12.16831343 | C31: =C9/C30*10 -> 13.67464236 | D31: 13.86293348 | E31: 23.13627099 | F31: 22.57139764 | G31: 47.42582507 | H31: 74.72803702 | I31: 79.74128801 | J31: 128.3439326 | K31: 231.3862463 | P31: Inventory/Sales | Q31: =Q68/Q61 -> 0.1188519935
A32: EV | B32: =B27+'Data Sheet'!B59-'Data Sheet'!B69 -> 31.96488711 | C32: =C27+'Data Sheet'!C59-'Data Sheet'!C69 -> 36.89531846 | D32: =D27+'Data Sheet'!D59-'Data Sheet'!D69 -> 45.37427342 | E32: =E27+'Data Sheet'!E59-'Data Sheet'!E69 -> 93.99077781 | F32: =F27+'Data Sheet'!F59-'Data Sheet'!F69 -> 181.4725275 | G32: =G27+'Data Sheet'!G59-'Data Sheet'!G69 -> 276.2141094 | H32: =H27+'Data Sheet'!H59-'Data Sheet'!H69 -> 507.4217719 | I32: =I27+'Data Sheet'!I59-'Data Sheet'!I69 -> 518.4474225 | J32: =J27+'Data Sheet'!J59-'Data Sheet'!J69 -> 1383.535124 | K32: =K27+'Data Sheet'!K59-'Data Sheet'!K69 -> 2253.547855 | P32: 5 yr Avg Inventory/Sales | Q32: =AVERAGE(Q64/Q57,Q65/Q58,Q66/Q59,Q67/Q60,Q68/Q61) -> 0.1536252356
B33: =B3 -> 2009-03-31 | C33: 2010-03-31 | D33: 2011-03-31 | E33: 2012-03-31 | F33: 2013-03-31 | G33: 2014-03-31 | H33: 2015-03-31 | I33: 2016-03-31 | J33: 2017-03-31 | K33: 2018-03-31
A34: Price/Earnings | B34: =B27/'Data Sheet'!B30 -> 3.890693832 | C34: =C27/'Data Sheet'!C30 -> 6.05427168 | D34: =D27/'Data Sheet'!D30 -> 6.454036234 | E34: =E27/'Data Sheet'!E30 -> 5.747790215 | F34: =F27/'Data Sheet'!F30 -> 5.704121741 | G34: =G27/'Data Sheet'!G30 -> 6.842883841 | H34: =H27/'Data Sheet'!H30 -> 11.71344163 | I34: =I27/'Data Sheet'!I30 -> 12.14425686 | J34: =J27/'Data Sheet'!J30 -> 23.33000411 | K34: =K27/'Data Sheet'!K30 -> 21.66817064 | P34: Debt:Equity | Q34: =Q36/Q35 -> 0.4303101425
A35: Price/Book | B35: =B27/B12 -> 0.528365829 | C35: 0.8182209458 | D35: 0.8690963287 | E35: 1.067462267 | F35: 0.8748205261 | G35: 1.677830487 | H35: 3.287093617 | I35: 2.810433214 | J35: 6.338424215 | K35: 7.142323068 | P35: Networth | Q35: =Q109 -> 298.25
A36: Price/CashFlow | B36: =B27/B18 -> -9.020128748 | C36: 1.875016975 | D36: 3.775002326 | E36: 4.505644164 | F36: -7.245367881 | G36: 4.834646192 | H36: 6.228467122 | I36: 8.804781136 | J36: 80.62009659 | K36: 73.93952986 | P36: Long Term Debt | Q36: =Q107 -> 128.34
A37: Price/Sales | B37: =B27/'Data Sheet'!B17 -> 0.1954039937 | C37: =C27/'Data Sheet'!C17 -> 0.3545184283 | D37: =D27/'Data Sheet'!D17 -> 0.4060052699 | E37: =E27/'Data Sheet'!E17 -> 0.398032954 | F37: =F27/'Data Sheet'!F17 -> 0.2953859685 | G37: =G27/'Data Sheet'!G17 -> 0.3827137487 | H37: =H27/'Data Sheet'!H17 -> 0.8496921837 | I37: =I27/'Data Sheet'!I17 -> 0.9118756731 | J37: =J27/'Data Sheet'!J17 -> 2.056887832 | K37: =K27/'Data Sheet'!K17 -> 2.688523538 | P37: Cash & Bank Balance | Q37: ='Data Sheet'!K69 -> 4.99
A38: EV/EBITDA | B38: =B32/B7 -> 3.035601815 | C38: 3.667526686 | D38: 4.488058696 | E38: 5.731144989 | F38: 6.993160983 | G38: 4.285046686 | H38: 6.092229222 | I38: 6.335664456 | J38: 12.26538231 | K38: 13.80765796 | P38: Investments | Q38: ='Data Sheet'!K64 -> 0.09
A39: Dividend Yield | B39: ='Data Sheet'!B31/KeyMetrics!B27 -> 0.02088005753 | C39: ='Data Sheet'!C31/KeyMetrics!C27 -> 0.02189034908 | D39: ='Data Sheet'!D31/KeyMetrics!D27 -> 0.01341601336 | E39: ='Data Sheet'!E31/KeyMetrics!E27 -> 0.009026424409 | F39: ='Data Sheet'!F31/KeyMetrics!F27 -> 0 | G39: ='Data Sheet'!G31/KeyMetrics!G27 -> 0.003046036283 | H39: ='Data Sheet'!H31/KeyMetrics!H27 -> 0.001720884514 | I39: ='Data Sheet'!I31/KeyMetrics!I27 -> 0.00123952654 | J39: ='Data Sheet'!J31/KeyMetrics!J27 -> 0.0005030714382 | K39: ='Data Sheet'!K31/KeyMetrics!K27 -> 0.0003004415756
B40: =B3 -> 2009-03-31 | C40: 2010-03-31 | D40: 2011-03-31 | E40: 2012-03-31 | F40: 2013-03-31 | G40: 2014-03-31 | H40: 2015-03-31 | I40: 2016-03-31 | J40: 2017-03-31 | K40: 2018-03-31 | L40: Z-Weights | P40: Management Effectiveness:
A41: Working Capital/Total Assets | B41: =B13/B16 -> 0.6391704351 | C41: 0.4935344828 | D41: 0.4290556155 | E41: 0.2107060599 | F41: 0.2369446926 | G41: 0.2678641156 | H41: 0.254084675 | I41: 0.3093286675 | J41: 0.4947576069 | K41: 0.538882717 | L41: 1.2 | P41: Book Value | Q41: =KeyMetrics!K97/'Data Sheet'!B6 -> 701.7637011
A42: Retained Profits/Total Assets | B42: =B29/B16 -> 0.07406829877 | C42: 0.08355437666 | D42: 0.08288399322 | E42: 0.0740211262 | F42: 0.03894258101 | G42: 0.06420018222 | H42: 0.0927549195 | I42: 0.1024342327 | J42: 0.1456250338 | K42: 0.1937589272 | L42: 1.4 | P42: ROE | Q42: =Q7/Q41 -> 0.3296227997
A43: EBIT/Total Assets | B43: =B6/B16 -> 0.1496959301 | C43: 0.1521883289 | D43: 0.1278693576 | E43: 0.117385434 | F43: 0.07743847966 | G43: 0.1517310946 | H43: 0.1954680978 | I43: 0.1989133438 | J43: 0.2604172296 | K43: 0.2912037772 | L43: 3.3 | P43: ROCE | Q43: =Q50/(AVERAGE(Q106,Q107)+AVERAGE(Q108,Q109)) -> 0.3170846754
A44: Market Cap/Total Liabilities | B44: =B27/B16 -> 0.3136579933 | C44: =C27/C16 -> 0.5831451999 | D44: 0.58564587 | E44: 0.4487393997 | F44: 0.222133223 | G44: 0.4486662417 | H44: 1.108830566 | I44: 1.262999731 | J44: 3.437780695 | K44: 4.225912266 | L44: 0.6 | P44: Shares ( in Cr) | Q44: ='Data Sheet'!B6 -> 0.4250006085
A45: Sales/Total Assets | B45: ='Data Sheet'!B17/KeyMetrics!B16 -> 1.605176984 | C45: ='Data Sheet'!C17/KeyMetrics!C16 -> 1.644893899 | D45: ='Data Sheet'!D17/KeyMetrics!D16 -> 1.442458789 | E45: ='Data Sheet'!E17/KeyMetrics!E16 -> 1.127392582 | F45: ='Data Sheet'!F17/KeyMetrics!F16 -> 0.7520100707 | G45: ='Data Sheet'!G17/KeyMetrics!G16 -> 1.172328518 | H45: ='Data Sheet'!H17/KeyMetrics!H16 -> 1.304979129 | I45: ='Data Sheet'!I17/KeyMetrics!I16 -> 1.385056942 | J45: ='Data Sheet'!J17/KeyMetrics!J16 -> 1.671350592 | K45: ='Data Sheet'!K17/KeyMetrics!K16 -> 1.571833836 | L45: 1 | P45: Margins:
A46: Altman Z-Score | B46: =$L$41*B41+$L$42*B42+$L$43*B43+$L$44*B44+$L$45*B45 -> 3.15806849 | C46: 3.206220011 | D46: 2.84671952 | E46: 2.140485003 | F46: 1.479690232 | G46: 2.353558069 | H46: 3.050080689 | I46: 3.313873142 | J46: 5.390980042 | K46: 5.986275419 | P46: Operating | Q46: =Q82/Q61 -> 0.2143425088
A47: Z > 2.99 -“Safe” Zones | P47: Net Profit | Q47: =Q89/Q61 -> 0.1240770891
A48: 1.81 < Z < 2.99 -“Grey” Zones
A49: Z < 1.81 -“Distress” Zones | P49: Latest Earnings:
P50: Net Profit (TTM) | Q50: =SUM(Q51:Q54) -> 117.64
A51: 10 YEARS NUMBERS | P51: Q1 | Q51: ='Data Sheet'!G49 -> 35.52
P52: Q2 | Q52: ='Data Sheet'!H49 -> 24.98
B53: ='Profit & Loss'!B3 -> 2009-03-31 | C53: ='Profit & Loss'!C3 -> 2010-03-31 | D53: ='Profit & Loss'!D3 -> 2011-03-31 | E53: ='Profit & Loss'!E3 -> 2012-03-31 | F53: ='Profit & Loss'!F3 -> 2013-03-31 | G53: ='Profit & Loss'!G3 -> 2014-03-31 | H53: ='Profit & Loss'!H3 -> 2015-03-31 | I53: ='Profit & Loss'!I3 -> 2016-03-31 | J53: ='Profit & Loss'!J3 -> 2017-03-31 | K53: ='Profit & Loss'!K3 -> 2018-03-31 | L53: Total 10 Yrs | M53: CAGR | P53: Q3 | Q53: ='Data Sheet'!I49 -> 35.79
A54: ='Profit & Loss'!A4 -> Sales | B54: ='Profit & Loss'!B4 -> 102.94 | C54: ='Profit & Loss'!C4 -> 99.22 | D54: ='Profit & Loss'!D4 -> 93.63 | E54: ='Profit & Loss'!E4 -> 141.95 | F54: ='Profit & Loss'!F4 -> 185.19 | G54: ='Profit & Loss'!G4 -> 360.28 | H54: ='Profit & Loss'!H4 -> 437.69 | I54: ='Profit & Loss'!I4 -> 451.21 | J54: ='Profit & Loss'!J4 -> 618.5 | K54: ='Profit & Loss'!K4 -> 792.33 | L54: =SUM(B54:K54) -> 3282.94 | M54: =RATE(9,,-B54,K54,0,0.2) -> 0.2545275848 | P54: Q4 | Q54: ='Data Sheet'!J49 -> 21.35
A55: Receivables | B55: ='Data Sheet'!B67 -> 22.26 | C55: ='Data Sheet'!C67 -> 16.92 | D55: ='Data Sheet'!D67 -> 15.93 | E55: ='Data Sheet'!E67 -> 30.04 | F55: ='Data Sheet'!F67 -> 45.02 | G55: ='Data Sheet'!G67 -> 60.41 | H55: ='Data Sheet'!H67 -> 79.53 | I55: ='Data Sheet'!I67 -> 88.17 | J55: ='Data Sheet'!J67 -> 120.15 | K55: ='Data Sheet'!K67 -> 221.61 | M55: =RATE(9,,-B55,K55,0,0.2) -> 0.2909101678
A56: % Sales | B56: =B55/B54 -> 0.2162424713 | C56: 0.1705301351 | D56: 0.1701377764 | E56: 0.2116238112 | F56: 0.2431016794 | G56: 0.1676751416 | H56: 0.1817039457 | I56: 0.1954079032 | J56: 0.1942603072 | K56: 0.2796940669 | P56: Last 5 Years: Sales
A57: EBITDA | B57: ='Profit & Loss'!B6+'Data Sheet'!B26 -> 7.3 | C57: ='Profit & Loss'!C6+'Data Sheet'!C26 -> 7.29 | D57: ='Profit & Loss'!D6+'Data Sheet'!D26 -> 8.36 | E57: ='Profit & Loss'!E6+'Data Sheet'!E26 -> 18.31 | F57: ='Profit & Loss'!F6+'Data Sheet'!F26 -> 32.61 | G57: ='Profit & Loss'!G6+'Data Sheet'!G26 -> 81.59 | H57: ='Profit & Loss'!H6+'Data Sheet'!H26 -> 100.13 | I57: ='Profit & Loss'!I6+'Data Sheet'!I26 -> 98.2 | J57: ='Profit & Loss'!J6+'Data Sheet'!J26 -> 127.06 | K57: ='Profit & Loss'!K6+'Data Sheet'!K26 -> 169.83 | M57: =RATE(9,,-B57,K57,0,0.2) -> 0.4185825609 | P57: 2014 | Q57: =KeyMetrics!G54 -> 360.28
A58: EBITDA % | B58: =B57/B54 -> 0.07091509617 | C58: 0.0734730901 | D58: 0.08928762149 | E58: 0.1289890807 | F58: 0.1760894217 | G58: 0.2264627512 | H58: 0.2287692202 | I58: 0.2176370205 | J58: 0.205432498 | K58: 0.2143425088 | P58: =P57+1 -> 2015 | Q58: =KeyMetrics!H54 -> 437.69
A59: ='Profit & Loss'!A7 -> Other Income | B59: ='Profit & Loss'!B7 -> 4.12 | C59: ='Profit & Loss'!C7 -> 3.65 | D59: ='Profit & Loss'!D7 -> 3.56 | E59: ='Profit & Loss'!E7 -> -0.29 | F59: ='Profit & Loss'!F7 -> 0.18 | G59: ='Profit & Loss'!G7 -> 0.64 | H59: ='Profit & Loss'!H7 -> 0.86 | I59: ='Profit & Loss'!I7 -> 0.6 | J59: ='Profit & Loss'!J7 -> 1.96 | K59: ='Profit & Loss'!K7 -> 9.79 | P59: =P58+1 -> 2016 | Q59: =KeyMetrics!I54 -> 451.21
A60: ='Profit & Loss'!A8 -> Depreciation | B60: ='Profit & Loss'!B8 -> 0.93 | C60: ='Profit & Loss'!C8 -> 0.88 | D60: ='Profit & Loss'!D8 -> 1.81 | E60: ='Profit & Loss'!E8 -> 1.62 | F60: ='Profit & Loss'!F8 -> 6.88 | G60: ='Profit & Loss'!G8 -> 17.83 | H60: ='Profit & Loss'!H8 -> 17.73 | I60: ='Profit & Loss'!I8 -> 17.03 | J60: ='Profit & Loss'!J8 -> 16.43 | K60: ='Profit & Loss'!K8 -> 16.42 | L60: =SUM(B60:K60) -> 97.56 | P60: =P59+1 -> 2017 | Q60: =KeyMetrics!J54 -> 618.5
A61: ='Profit & Loss'!A9 -> Interest | B61: ='Profit & Loss'!B9 -> 0.83 | C61: ='Profit & Loss'!C9 -> 0.49 | D61: ='Profit & Loss'!D9 -> 0.27 | E61: ='Profit & Loss'!E9 -> 1.06 | F61: ='Profit & Loss'!F9 -> 4.96 | G61: ='Profit & Loss'!G9 -> 16.56 | H61: ='Profit & Loss'!H9 -> 17.5 | I61: ='Profit & Loss'!I9 -> 13.24 | J61: ='Profit & Loss'!J9 -> 12.45 | K61: ='Profit & Loss'!K9 -> 11.17 | L61: =SUM(B61:K61) -> 78.53 | P61: =P60+1 -> 2018 | Q61: =KeyMetrics!K54 -> 792.33
A62: ='Profit & Loss'!A10 -> Profit before tax | B62: ='Profit & Loss'!B10 -> 8.77 | C62: ='Profit & Loss'!C10 -> 8.69 | D62: ='Profit & Loss'!D10 -> 8.03 | E62: ='Profit & Loss'!E10 -> 13.72 | F62: ='Profit & Loss'!F10 -> 14.11 | G62: ='Profit & Loss'!G10 -> 30.07 | H62: ='Profit & Loss'!H10 -> 48.06 | I62: ='Profit & Loss'!I10 -> 51.56 | J62: ='Profit & Loss'!J10 -> 83.92 | K62: ='Profit & Loss'!K10 -> 135.62 | M62: =RATE(9,,-B62,K62,0,0.2) -> 0.3556485922
A63: Tax% | B63: =B64/B62 -> 0.4104903079 | C63: 0.33141542 | D63: 0.2665006227 | E63: 0.2835276968 | F63: 0.3210489015 | G63: 0.3295643499 | H63: 0.3393674573 | I63: 0.342901474 | J63: 0.35021449 | K63: 0.2751069164 | P63: Last 5 Years: Inventory
A64: ='Profit & Loss'!A11 -> Tax | B64: ='Profit & Loss'!B11 -> 3.6 | C64: ='Profit & Loss'!C11 -> 2.88 | D64: ='Profit & Loss'!D11 -> 2.14 | E64: ='Profit & Loss'!E11 -> 3.89 | F64: ='Profit & Loss'!F11 -> 4.53 | G64: ='Profit & Loss'!G11 -> 9.91 | H64: ='Profit & Loss'!H11 -> 16.31 | I64: ='Profit & Loss'!I11 -> 17.68 | J64: ='Profit & Loss'!J11 -> 29.39 | K64: ='Profit & Loss'!K11 -> 37.31 | P64: =P57 -> 2014 | Q64: ='Data Sheet'!G68 -> 67.43
A65: Net Profit after Tax | B65: ='Profit & Loss'!B12 -> 5.17 | C65: ='Profit & Loss'!C12 -> 5.81 | D65: ='Profit & Loss'!D12 -> 5.89 | E65: ='Profit & Loss'!E12 -> 9.83 | F65: ='Profit & Loss'!F12 -> 9.59 | G65: ='Profit & Loss'!G12 -> 20.15 | H65: ='Profit & Loss'!H12 -> 31.75 | I65: ='Profit & Loss'!I12 -> 33.88 | J65: ='Profit & Loss'!J12 -> 54.53 | K65: ='Profit & Loss'!K12 -> 98.31 | L65: =SUM(B65:K65) -> 274.91 | M65: =RATE(9,,-B65,K65,0,0.2) -> 0.387148693 | P65: =P58 -> 2015 | Q65: ='Data Sheet'!H68 -> 57.39
A66: NPM% | B66: =B65/B54 -> 0.05022343112 | C66: 0.05855674259 | D66: 0.06290718787 | E66: 0.06924973582 | F66: 0.0517846536 | G66: 0.05592872211 | H66: 0.07253992552 | I66: 0.07508698832 | J66: 0.08816491512 | K66: 0.1240770891 | P66: =P59 -> 2016 | Q66: ='Data Sheet'!I67 -> 88.17
A67: Cash from Operations | B67: ='Cash Flow'!B4 -> -2.23 | C67: ='Cash Flow'!C4 -> 18.76 | D67: ='Cash Flow'!D4 -> 10.07 | E67: ='Cash Flow'!E4 -> 12.54 | F67: ='Cash Flow'!F4 -> -7.55 | G67: ='Cash Flow'!G4 -> 28.52 | H67: ='Cash Flow'!H4 -> 59.71 | I67: ='Cash Flow'!I4 -> 46.73 | J67: ='Cash Flow'!J4 -> 15.78 | K67: ='Cash Flow'!K4 -> 28.81 | L67: =SUM(B67:K67) -> 211.14 | M67: =RATE(9,,-B67,K67,0,0.2) ->  | P67: =P60 -> 2017 | Q67: ='Data Sheet'!J68 -> 83.86
A68: Capex(NFA+WIP Change+Dep) | C68: =('Balance Sheet'!C10-'Balance Sheet'!B10)+('Balance Sheet'!C11-'Balance Sheet'!B11)+C60 -> 1.05 | D68: =('Balance Sheet'!D10-'Balance Sheet'!C10)+('Balance Sheet'!D11-'Balance Sheet'!C11)+D60 -> 19.45 | E68: =('Balance Sheet'!E10-'Balance Sheet'!D10)+('Balance Sheet'!E11-'Balance Sheet'!D11)+E60 -> 42.9 | F68: =('Balance Sheet'!F10-'Balance Sheet'!E10)+('Balance Sheet'!F11-'Balance Sheet'!E11)+F60 -> 77.42 | G68: =('Balance Sheet'!G10-'Balance Sheet'!F10)+('Balance Sheet'!G11-'Balance Sheet'!F11)+G60 -> 25.61 | H68: =('Balance Sheet'!H10-'Balance Sheet'!G10)+('Balance Sheet'!H11-'Balance Sheet'!G11)+H60 -> 13.19 | I68: =('Balance Sheet'!I10-'Balance Sheet'!H10)+('Balance Sheet'!I11-'Balance Sheet'!H11)+I60 -> 15 | J68: =('Balance Sheet'!J10-'Balance Sheet'!I10)+('Balance Sheet'!J11-'Balance Sheet'!I11)+J60 -> 12.41 | K68: =('Balance Sheet'!K10-'Balance Sheet'!J10)+('Balance Sheet'!K11-'Balance Sheet'!J11)+K60 -> 39.04 | L68: =SUM(B68:K68) -> 246.07 | M68: =RATE(8,,-C68,K68,0,0.2) -> 0.5714119944 | P68: =P61 -> 2018 | Q68: ='Data Sheet'!K68 -> 94.17
K69: FCF | L69: =L67-L68 -> -34.93
A70: YoY Sales Growth (%) | C70: =C54/B54-1 -> -0.03613755586 | D70: -0.05633944769 | E70: 0.5160739079 | F70: 0.3046143008 | G70: 0.945461418 | H70: 0.2148606639 | I70: 0.0308894423 | J70: 0.3707586268 | K70: 0.2810509297 | P70: Last 5 Years: RM
A71: YoY Op. Profit Growth (%) | C71: =C57/B57-1 -> -0.001369863014 | D71: 0.146776406 | E71: 1.190191388 | F71: 0.7809939924 | G71: 1.501993254 | H71: 0.2272337296 | I71: -0.01927494257 | J71: 0.2938900204 | K71: 0.336612624 | L71: Avg Op. Lev | P71: =P57 -> 2014 | Q71: ='Data Sheet'!G18 -> 256.34
A72: Business Risk (Op. Leverage) | C72: =C71/C70-1 -> -0.9620930918 | D72: -3.605215565 | E72: 1.306242128 | F72: 1.563878289 | G72: 0.5886351627 | H72: 0.0575864631 | I72: -1.623997753 | J72: -0.2073278971 | K72: 0.1976926188 | L72: =AVERAGE(C72:K72) -> -0.2982888494 | P72: =P58 -> 2015 | Q72: ='Data Sheet'!H18 -> 281.09
P73: =P59 -> 2016 | Q73: ='Data Sheet'!I18 -> 293.95
A74: Self Sustainable Growth Rate(SSGR) | C74: =((1-C82) + C81*C66*(1-'Profit & Loss'!B18)) - 1 -> 0.7974969118 | D74: =((1-D82) + D81*D66*(1-'Profit & Loss'!C18)) - 1 -> 0.1653833379 | E74: =((1-E82) + E81*E66*(1-'Profit & Loss'!D18)) - 1 -> 0.4531308806 | F74: =((1-F82) + F81*F66*(1-'Profit & Loss'!E18)) - 1 -> 0.01638246337 | G74: =((1-G82) + G81*G66*(1-'Profit & Loss'!F18)) - 1 -> 0.01630816814 | H74: =((1-H82) + H81*H66*(1-'Profit & Loss'!G18)) - 1 -> 0.09777641194 | I74: =((1-I82) + I81*I66*(1-'Profit & Loss'!H18)) - 1 -> 0.1191207233 | J74: =((1-J82) + J81*J66*(1-'Profit & Loss'!I18)) - 1 -> 0.2845085316 | K74: =((1-K82) + K81*K66*(1-'Profit & Loss'!J18)) - 1 -> 0.5465486669 | P74: =P60 -> 2017 | Q74: ='Data Sheet'!J18 -> 425.4
A75: Growth in Sales | C75: =C54/B54-1 -> -0.03613755586 | D75: -0.05633944769 | E75: 0.5160739079 | F75: 0.3046143008 | G75: 0.945461418 | H75: 0.2148606639 | I75: 0.0308894423 | J75: 0.3707586268 | K75: 0.2810509297 | L75: Req. Funds ? | P75: =P61 -> 2018 | Q75: ='Data Sheet'!K18 -> 521.59
A76: Need for External Funds (Debt/Equity) | C76: =IF(C75>C74,"YES","NO") -> NO | D76: NO | E76: YES | F76: YES | G76: YES | H76: YES | I76: NO | J76: YES | K76: NO | L76: =IF(COUNTIF(C76:K76,"YES")>6,"Yes","No") -> No
A77: Return on Invested Capital (ROIC) | B77: =KeyMetrics!B23 -> 0.1219412421 | C77: =KeyMetrics!C23 -> 0.1735748429 | D77: =KeyMetrics!D23 -> 0.1191864689 | E77: =KeyMetrics!E23 -> 0.1163165712 | F77: =KeyMetrics!F23 -> 0.06694724637 | G77: =KeyMetrics!G23 -> 0.1388514962 | H77: =KeyMetrics!H23 -> 0.1937768757 | I77: =KeyMetrics!I23 -> 0.1796396426 | J77: =KeyMetrics!J23 -> 0.1985850683 | K77: =KeyMetrics!K23 -> 0.2494889935 | P77: Last 5 Years: EBIT
P78: =P57 -> 2014 | Q78: =KeyMetrics!G57 -> 81.59
B79: =B53 -> 2009-03-31 | C79: 2010-03-31 | D79: 2011-03-31 | E79: 2012-03-31 | F79: 2013-03-31 | G79: 2014-03-31 | H79: 2015-03-31 | I79: 2016-03-31 | J79: 2017-03-31 | K79: 2018-03-31 | P79: =P58 -> 2015 | Q79: =KeyMetrics!H57 -> 100.13
A80: Capital Intensity (EBITDA / EBIT) | B80: =(B57)/(B57-B60) -> 1.14599686 | C80: 1.137285491 | D80: 1.276335878 | E80: 1.09706411 | F80: 1.267392149 | G80: 1.279642409 | H80: 1.215169903 | I80: 1.209806579 | J80: 1.148513062 | K80: 1.10703344 | P80: =P59 -> 2016 | Q80: =KeyMetrics!I57 -> 98.2
A81: Net Fixed Assets Turns (Higher is better) | B81: ='Profit & Loss'!B4/'Balance Sheet'!B10 -> 18.99261993 | C81: ='Profit & Loss'!C4/'Balance Sheet'!C10 -> 17.74955277 | D81: ='Profit & Loss'!D4/'Balance Sheet'!D10 -> 4.693233083 | E81: ='Profit & Loss'!E4/'Balance Sheet'!E10 -> 8.740763547 | F81: ='Profit & Loss'!F4/'Balance Sheet'!F10 -> 1.3712699 | G81: ='Profit & Loss'!G4/'Balance Sheet'!G10 -> 2.532546042 | H81: ='Profit & Loss'!H4/'Balance Sheet'!H10 -> 3.203703704 | I81: ='Profit & Loss'!I4/'Balance Sheet'!I10 -> 3.324565281 | J81: ='Profit & Loss'!J4/'Balance Sheet'!J10 -> 4.720293063 | K81: ='Profit & Loss'!K4/'Balance Sheet'!K10 -> 5.363728676 | P81: =P60 -> 2017 | Q81: =KeyMetrics!J57 -> 127.06
A82: Depreciation/NFA (consistency) | B82: =B60/'Balance Sheet'!B10 -> 0.1715867159 | C82: =C60/'Balance Sheet'!C10 -> 0.1574239714 | D82: =D60/'Balance Sheet'!D10 -> 0.09072681704 | E82: =E60/'Balance Sheet'!E10 -> 0.09975369458 | F82: =F60/'Balance Sheet'!F10 -> 0.05094409478 | G82: =G60/'Balance Sheet'!G10 -> 0.1253338957 | H82: =H60/'Balance Sheet'!H10 -> 0.1297760211 | I82: =I60/'Balance Sheet'!I10 -> 0.1254789272 | J82: =J60/'Balance Sheet'!J10 -> 0.1253911318 | K82: =K60/'Balance Sheet'!K10 -> 0.1111562415 | P82: =P61 -> 2018 | Q82: =KeyMetrics!K57 -> 169.83
A83: Receivable days (Lower is better) | B83: ='Balance Sheet'!B22 -> 78.92850204 | C83: ='Balance Sheet'!C22 -> 62.24349929 | D83: ='Balance Sheet'!D22 -> 62.10028837 | E83: ='Balance Sheet'!E22 -> 77.24269109 | F83: ='Balance Sheet'!F22 -> 88.73211297 | G83: ='Balance Sheet'!G22 -> 61.20142667 | H83: ='Balance Sheet'!H22 -> 66.32194019 | I83: ='Balance Sheet'!I22 -> 71.32388467 | J83: ='Balance Sheet'!J22 -> 70.90501213 | K83: ='Balance Sheet'!K22 -> 102.0883344
A84: Inventory Turnover (Higher is better) | B84: ='Balance Sheet'!B20 -> 9.158362989 | C84: ='Balance Sheet'!C20 -> 7.306332842 | D84: ='Balance Sheet'!D20 -> 7.921319797 | E84: ='Balance Sheet'!E20 -> 8.494913226 | F84: ='Balance Sheet'!F20 -> 4.97020934 | G84: ='Balance Sheet'!G20 -> 5.343022394 | H84: ='Balance Sheet'!H20 -> 7.626589998 | I84: ='Balance Sheet'!I20 -> 7.950837004 | J84: ='Balance Sheet'!J20 -> 7.375387551 | K84: ='Balance Sheet'!K20 -> 8.413826059 | P84: Last 5 Years: Profits
A85: Working Capital Cycle | B85: ='Balance Sheet'!B22+'Balance Sheet'!B21 -> 118.7827861 | C85: ='Balance Sheet'!C22+'Balance Sheet'!C21 -> 112.2001613 | D85: ='Balance Sheet'!D22+'Balance Sheet'!D21 -> 108.1784684 | E85: ='Balance Sheet'!E22+'Balance Sheet'!E21 -> 120.2095808 | F85: ='Balance Sheet'!F22+'Balance Sheet'!F21 -> 162.1696636 | G85: ='Balance Sheet'!G22+'Balance Sheet'!G21 -> 129.5148218 | H85: ='Balance Sheet'!H22+'Balance Sheet'!H21 -> 114.1808129 | I85: ='Balance Sheet'!I22+'Balance Sheet'!I21 -> 117.2310011 | J85: ='Balance Sheet'!J22+'Balance Sheet'!J21 -> 120.3939369 | K85: ='Balance Sheet'!K22+'Balance Sheet'!K21 -> 145.469312 | P85: =P57 -> 2014 | Q85: =KeyMetrics!G65 -> 20.15
P86: =P58 -> 2015 | Q86: =KeyMetrics!H65 -> 31.75
A87: Net Fixed Assets | B87: ='Balance Sheet'!B10 -> 5.42 | C87: ='Balance Sheet'!C10 -> 5.59 | D87: ='Balance Sheet'!D10 -> 19.95 | E87: ='Balance Sheet'!E10 -> 16.24 | F87: ='Balance Sheet'!F10 -> 135.05 | G87: ='Balance Sheet'!G10 -> 142.26 | H87: ='Balance Sheet'!H10 -> 136.62 | I87: ='Balance Sheet'!I10 -> 135.72 | J87: ='Balance Sheet'!J10 -> 131.03 | K87: ='Balance Sheet'!K10 -> 147.72 | P87: =P59 -> 2016 | Q87: =KeyMetrics!I65 -> 33.88
A88: CWIP | B88: ='Balance Sheet'!B11 -> 0 | C88: ='Balance Sheet'!C11 -> 0 | D88: ='Balance Sheet'!D11 -> 3.28 | E88: ='Balance Sheet'!E11 -> 48.27 | F88: ='Balance Sheet'!F11 -> 0 | G88: ='Balance Sheet'!G11 -> 0.57 | H88: ='Balance Sheet'!H11 -> 1.67 | I88: ='Balance Sheet'!I11 -> 0.54 | J88: ='Balance Sheet'!J11 -> 1.21 | K88: ='Balance Sheet'!K11 -> 7.14 | P88: =P60 -> 2017 | Q88: =KeyMetrics!J65 -> 54.53
A89: Share Capital | B89: ='Balance Sheet'!B4 -> 4.25 | C89: ='Balance Sheet'!C4 -> 4.25 | D89: ='Balance Sheet'!D4 -> 4.25 | E89: ='Balance Sheet'!E4 -> 4.25 | F89: ='Balance Sheet'!F4 -> 4.25 | G89: ='Balance Sheet'!G4 -> 4.25 | H89: ='Balance Sheet'!H4 -> 4.25 | I89: ='Balance Sheet'!I4 -> 4.25 | J89: ='Balance Sheet'!J4 -> 4.25 | K89: ='Balance Sheet'!K4 -> 4.25 | P89: =P61 -> 2018 | Q89: =KeyMetrics!K65 -> 98.31
A91: Dividend Paid (Div) without DDT | B91: ='Data Sheet'!B31 -> 0.42 | C91: ='Data Sheet'!C31 -> 0.77 | D91: ='Data Sheet'!D31 -> 0.51 | E91: ='Data Sheet'!E31 -> 0.51 | F91: ='Data Sheet'!F31 -> 0 | G91: ='Data Sheet'!G31 -> 0.42 | H91: ='Data Sheet'!H31 -> 0.64 | I91: ='Data Sheet'!I31 -> 0.51 | J91: ='Data Sheet'!J31 -> 0.64 | K91: ='Data Sheet'!K31 -> 0.64 | P91: Last 5 Years: Dividends
A92: Dividend Payout (Div/PAT) | B92: =B91/B65 -> 0.08123791103 | C92: 0.1325301205 | D92: 0.08658743633 | E92: 0.0518819939 | F92: 0 | G92: 0.02084367246 | H92: 0.02015748031 | I92: 0.01505312869 | J92: 0.01173665872 | K92: 0.006510019327 | P92: =P57 -> 2014 | Q92: ='Data Sheet'!G31 -> 0.42
A93: Retained Earnings (PAT-Div) | B93: =B65-B91 -> 4.75 | C93: 5.04 | D93: 5.38 | E93: 9.32 | F93: 9.59 | G93: 19.73 | H93: 31.11 | I93: 33.37 | J93: 53.89 | K93: 97.67 | L93: =SUM(B93:K93) -> 269.85 | P93: =P58 -> 2015 | Q93: ='Data Sheet'!H31 -> 0.64
A94: Cash + Investments (CI+NCI) | B94: ='Data Sheet'!B69+'Data Sheet'!B64 -> 5.25 | C94: ='Data Sheet'!C69+'Data Sheet'!C64 -> 13.49 | D94: ='Data Sheet'!D69+'Data Sheet'!D64 -> 2.2 | E94: ='Data Sheet'!E69+'Data Sheet'!E64 -> 2.6 | F94: ='Data Sheet'!F69+'Data Sheet'!F64 -> 4.66 | G94: ='Data Sheet'!G69+'Data Sheet'!G64 -> 5.16 | H94: ='Data Sheet'!H69+'Data Sheet'!H64 -> 34.43 | I94: ='Data Sheet'!I69+'Data Sheet'!I64 -> 23.91 | J94: ='Data Sheet'!J69+'Data Sheet'!J64 -> 3.45 | K94: ='Data Sheet'!K69+'Data Sheet'!K64 -> 5.08 | P94: =P59 -> 2016 | Q94: ='Data Sheet'!I31 -> 0.51
B95: =B53 -> 2009-03-31 | C95: 2010-03-31 | D95: 2011-03-31 | E95: 2012-03-31 | F95: 2013-03-31 | G95: 2014-03-31 | H95: 2015-03-31 | I95: 2016-03-31 | J95: 2017-03-31 | K95: 2018-03-31 | P95: =P60 -> 2017 | Q95: ='Data Sheet'!J31 -> 0.64
A96: Total Debt(D) | B96: ='Balance Sheet'!B6 -> 12.72 | C96: ='Balance Sheet'!C6 -> 3.79 | D96: ='Balance Sheet'!D6 -> 8.45 | E96: ='Balance Sheet'!E6 -> 39.1 | F96: ='Balance Sheet'!F6 -> 131.15 | G96: ='Balance Sheet'!G6 -> 143.23 | H96: ='Balance Sheet'!H6 -> 140.16 | I96: ='Balance Sheet'!I6 -> 110.77 | J96: ='Balance Sheet'!J6 -> 114.71 | K96: ='Balance Sheet'!K6 -> 128.34 | P96: =P61 -> 2018 | Q96: ='Data Sheet'!K31 -> 0.64
A97: Total Equity(E) | B97: ='Balance Sheet'!B4+'Balance Sheet'!B5 -> 38.07 | C97: ='Balance Sheet'!C4+'Balance Sheet'!C5 -> 42.99 | D97: ='Balance Sheet'!D4+'Balance Sheet'!D5 -> 43.74 | E97: ='Balance Sheet'!E4+'Balance Sheet'!E5 -> 52.93 | F97: ='Balance Sheet'!F4+'Balance Sheet'!F5 -> 62.53 | G97: ='Balance Sheet'!G4+'Balance Sheet'!G5 -> 82.18 | H97: ='Balance Sheet'!H4+'Balance Sheet'!H5 -> 113.14 | I97: ='Balance Sheet'!I4+'Balance Sheet'!I5 -> 146.4 | J97: ='Balance Sheet'!J4+'Balance Sheet'!J5 -> 200.71 | K97: ='Balance Sheet'!K4+'Balance Sheet'!K5 -> 298.25
A98: D/E | B98: =B96/B97 -> 0.3341213554 | C98: 0.08816003722 | D98: 0.1931870142 | E98: 0.7387115058 | F98: 2.097393251 | G98: 1.74288148 | H98: 1.238819162 | I98: 0.7566256831 | J98: 0.5715211001 | K98: 0.4303101425 | P98: Last 5 Years: Op CF
A99: Cost of Funds | B99: 0.12 | P99: =P57 -> 2014 | Q99: =KeyMetrics!G104 -> 28.52
A100: Interest Outgo (Rs Cr) (Calculated) | B100: =$B$99*B96 -> 1.5264 | C100: 0.4548 | D100: 1.014 | E100: 4.692 | F100: 15.738 | G100: 17.1876 | H100: 16.8192 | I100: 13.2924 | J100: 13.7652 | K100: 15.4008 | L100: =SUM(B100:K100) -> 99.8904 | P100: =P58 -> 2015 | Q100: =KeyMetrics!H104 -> 59.71
A101: Interest Coverage (Op/Int. Outgo) | B101: =B57/B100 -> 4.782494759 | C101: 16.02902375 | D101: 8.244575937 | E101: 3.902387042 | F101: 2.072054899 | G101: 4.747026926 | H101: 5.953315259 | I101: 7.387680178 | J101: 9.230523349 | K101: 11.02734923 | P101: =P59 -> 2016 | Q101: =KeyMetrics!I104 -> 46.73
P102: =P60 -> 2017 | Q102: =KeyMetrics!J104 -> 15.78
B103: ='Cash Flow'!B3 -> 2009-03-31 | C103: ='Cash Flow'!C3 -> 2010-03-31 | D103: ='Cash Flow'!D3 -> 2011-03-31 | E103: ='Cash Flow'!E3 -> 2012-03-31 | F103: ='Cash Flow'!F3 -> 2013-03-31 | G103: ='Cash Flow'!G3 -> 2014-03-31 | H103: ='Cash Flow'!H3 -> 2015-03-31 | I103: ='Cash Flow'!I3 -> 2016-03-31 | J103: ='Cash Flow'!J3 -> 2017-03-31 | K103: ='Cash Flow'!K3 -> 2018-03-31 | L103: Total 10 Yrs | P103: =P61 -> 2018 | Q103: =KeyMetrics!K104 -> 28.81
A104: ='Cash Flow'!A4 -> Cash from Operating Activity | B104: ='Cash Flow'!B4 -> -2.23 | C104: ='Cash Flow'!C4 -> 18.76 | D104: ='Cash Flow'!D4 -> 10.07 | E104: ='Cash Flow'!E4 -> 12.54 | F104: ='Cash Flow'!F4 -> -7.55 | G104: ='Cash Flow'!G4 -> 28.52 | H104: ='Cash Flow'!H4 -> 59.71 | I104: ='Cash Flow'!I4 -> 46.73 | J104: ='Cash Flow'!J4 -> 15.78 | K104: ='Cash Flow'!K4 -> 28.81 | L104: =SUM(B104:K104) -> 211.14
A105: ='Cash Flow'!A5 -> Cash from Investing Activity | B105: ='Cash Flow'!B5 -> -3.99 | C105: ='Cash Flow'!C5 -> -8.05 | D105: ='Cash Flow'!D5 -> -6.93 | E105: ='Cash Flow'!E5 -> -41.81 | F105: ='Cash Flow'!F5 -> -76.69 | G105: ='Cash Flow'!G5 -> -25.36 | H105: ='Cash Flow'!H5 -> -40.97 | I105: ='Cash Flow'!I5 -> -4.99 | J105: ='Cash Flow'!J5 -> 7.77 | K105: ='Cash Flow'!K5 -> -30.85 | L105: =SUM(B105:K105) -> -231.87 | P105: Debt: Equity
A106: ='Cash Flow'!A6 -> Cash from Financing Activity | B106: ='Cash Flow'!B6 -> 4.86 | C106: ='Cash Flow'!C6 -> -9.62 | D106: ='Cash Flow'!D6 -> -5.23 | E106: ='Cash Flow'!E6 -> 29.79 | F106: ='Cash Flow'!F6 -> 87.01 | G106: ='Cash Flow'!G6 -> -2.65 | H106: ='Cash Flow'!H6 -> -18.98 | I106: ='Cash Flow'!I6 -> -42.62 | J106: ='Cash Flow'!J6 -> -23.9 | K106: ='Cash Flow'!K6 -> 2.23 | L106: =SUM(B106:K106) -> 20.89 | P106: =CONCATENATE("Debt FY",P102) -> Debt FY2017 | Q106: =KeyMetrics!J96 -> 114.71
A107: ='Cash Flow'!A7 -> Net Cash Flow | B107: ='Cash Flow'!B7 -> -1.36 | C107: ='Cash Flow'!C7 -> 1.09 | D107: ='Cash Flow'!D7 -> -2.09 | E107: ='Cash Flow'!E7 -> 0.52 | F107: ='Cash Flow'!F7 -> 2.77 | G107: ='Cash Flow'!G7 -> 0.51 | H107: ='Cash Flow'!H7 -> -0.25 | I107: ='Cash Flow'!I7 -> -0.88 | J107: ='Cash Flow'!J7 -> -0.34 | K107: ='Cash Flow'!K7 -> 0.18 | L107: =SUM(B107:K107) -> 0.15 | P107: =CONCATENATE("Debt FY",P103) -> Debt FY2018 | Q107: =KeyMetrics!K96 -> 128.34
A108: Cash & Eq at end of Year | B108: ='Data Sheet'!B69 -> 0.87 | C108: ='Data Sheet'!C69 -> 2.07 | D108: ='Data Sheet'!D69 -> 1.09 | E108: ='Data Sheet'!E69 -> 1.61 | F108: ='Data Sheet'!F69 -> 4.38 | G108: ='Data Sheet'!G69 -> 4.9 | H108: ='Data Sheet'!H69 -> 4.64 | I108: ='Data Sheet'!I69 -> 3.77 | J108: ='Data Sheet'!J69 -> 3.36 | K108: ='Data Sheet'!K69 -> 4.99 | P108: =CONCATENATE("Equity FY",P102) -> Equity FY2017 | Q108: =KeyMetrics!J97 -> 200.71
P109: =CONCATENATE("Equity FY",P103) -> Equity FY2018 | Q109: =KeyMetrics!K97 -> 298.25
A110: Market Cap | B110: ='Data Sheet'!B90*'Data Sheet'!B93 -> 20.11488711 | C110: ='Data Sheet'!C90*'Data Sheet'!C93 -> 35.17531846 | D110: ='Data Sheet'!D90*'Data Sheet'!D93 -> 38.01427342 | E110: ='Data Sheet'!E90*'Data Sheet'!E93 -> 56.50077781 | F110: ='Data Sheet'!F90*'Data Sheet'!F93 -> 54.7025275 | G110: ='Data Sheet'!G90*'Data Sheet'!G93 -> 137.8841094 | H110: ='Data Sheet'!H90*'Data Sheet'!H93 -> 371.9017719 | I110: ='Data Sheet'!I90*'Data Sheet'!I93 -> 411.4474225 | J110: ='Data Sheet'!J90*'Data Sheet'!J93 -> 1272.185124 | K110: ='Data Sheet'!K90*'Data Sheet'!K93 -> 2130.197855
A111: P/B | B111: =B110/B97 -> 0.528365829 | C111: =C110/C97 -> 0.8182209458 | D111: 0.8690963287 | E111: 1.067462267 | F111: 0.8748205261 | G111: 1.677830487 | H111: 3.287093617 | I111: 2.810433214 | J111: 6.338424215 | K111: 7.142323068

Sheet Charts
A1: ='Data Sheet'!B1 -> BHARAT RASAYAN LTD
Q2: =KeyMetrics!F53 -> 2013-03-31 | R2: =KeyMetrics!G53 -> 2014-03-31 | S2: =KeyMetrics!H53 -> 2015-03-31 | T2: =KeyMetrics!I53 -> 2016-03-31 | U2: =KeyMetrics!J53 -> 2017-03-31 | V2: =KeyMetrics!K53 -> 2018-03-31 | W2: Growth (x)
P3: Sales (INR Cr) | Q3: =KeyMetrics!F54 -> 185.19 | R3: =KeyMetrics!G54 -> 360.28 | S3: =KeyMetrics!H54 -> 437.69 | T3: =KeyMetrics!I54 -> 451.21 | U3: =KeyMetrics!J54 -> 618.5 | V3: =KeyMetrics!K54 -> 792.33 | W3: =V3/Q3 -> 4.27847076
P4: PAT (INR Cr) | Q4: =KeyMetrics!F65 -> 9.59 | R4: =KeyMetrics!G65 -> 20.15 | S4: =KeyMetrics!H65 -> 31.75 | T4: =KeyMetrics!I65 -> 33.88 | U4: =KeyMetrics!J65 -> 54.53 | V4: =KeyMetrics!K65 -> 98.31 | W4: =V4/Q4 -> 10.25130344
P5: ROE (%) | Q5: =Q4/KeyMetrics!F97 -> 0.1533663841 | R5: =R4/KeyMetrics!G97 -> 0.2451934777 | S5: =S4/KeyMetrics!H97 -> 0.2806257734 | T5: =T4/KeyMetrics!I97 -> 0.231420765 | U5: =U4/KeyMetrics!J97 -> 0.2716855164 | V5: =V4/KeyMetrics!K97 -> 0.3296227997 | W5: 2.149250643
P6: PE (x) | Q6: =Q8/Q4 -> 5.704121741 | R6: 6.842883841 | S6: 11.71344163 | T6: 12.14425686 | U6: 23.33000411 | V6: 21.66817064 | W6: 3.798686567
P7: PB (x) | Q7: =KeyMetrics!F111 -> 0.8748205261 | R7: =KeyMetrics!G111 -> 1.677830487 | S7: =KeyMetrics!H111 -> 3.287093617 | T7: =KeyMetrics!I111 -> 2.810433214 | U7: =KeyMetrics!J111 -> 6.338424215 | V7: =KeyMetrics!K111 -> 7.142323068 | W7: 8.164329545
P8: Mcap (INR Cr) | Q8: =KeyMetrics!F110 -> 54.7025275 | R8: =KeyMetrics!G110 -> 137.8841094 | S8: =KeyMetrics!H110 -> 371.9017719 | T8: =KeyMetrics!I110 -> 411.4474225 | U8: =KeyMetrics!J110 -> 1272.185124 | V8: =KeyMetrics!K110 -> 2130.197855 | W8: 38.94148868
R10: 10 Years | S10: 3 Years | T10: Total Retained Earnings (10 Yrs) | W10: =KeyMetrics!L93 -> 269.85
P11: OCF as part of Sales | R11: =KeyMetrics!L104/KeyMetrics!L54 -> 0.06431430364 | S11: =SUM(KeyMetrics!I104:K104)/SUM(KeyMetrics!I54:K54) -> 0.04904298511 | T11: Total Mcap Increase (10 Yrs) | W11: =Customization!C5 -> 2110.082968
P12: OCF as part of Profits | R12: =KeyMetrics!L104/KeyMetrics!L65 -> 0.7680331745 | S12: =SUM(KeyMetrics!I104:K104)/SUM(KeyMetrics!I65:K65) -> 0.4890745501 | T12: Value created per INR of RE | W12: =W11/W10 -> 7.819466252

Sheet Forecast
B1: Annual
B2: Growth% | D2: =D10/C10-1 -> -0.03613755586 | E2: -0.05633944769 | F2: 0.5160739079 | G2: 0.3046143008 | H2: 0.945461418 | I2: 0.2148606639 | J2: 0.0308894423 | K2: 0.3707586268 | L2: 0.2810509297 | M2: 0.15 | N2: 0.15 | O2: =MEDIAN(L2:N2) -> 0.15 | P2: =MEDIAN(M2:O2) -> 0.15 | Q2: =MEDIAN(N2:P2) -> 0.15
B3: Exp as Sales% | C3: =C11/C10 -> 0.9381192928 | D3: 0.9353960895 | E3: 0.9300437894 | F3: 0.8824233885 | G3: 0.8610616124 | H3: 0.8230265349 | I3: 0.811738902 | J3: 0.8201059374 | K3: 0.8211317704 | L3: 0.8063811796 | M3: 0.89 | N3: =1-N4 -> 0.888 | O3: =1-O4 -> 0.887 | P3: =1-P4 -> 0.886 | Q3: =1-Q4 -> 0.885
B4: OPM % | C4: =C12/C10 -> 0.06188070721 | D4: 0.0646039105 | E4: 0.06995621062 | F4: 0.1175766115 | G4: 0.1389383876 | H4: 0.1769734651 | I4: 0.188261098 | J4: 0.1798940626 | K4: 0.1788682296 | L4: 0.1936188204 | M4: 0.11 | N4: 0.112 | O4: 0.113 | P4: 0.114 | Q4: 0.115
B5: Tax % | C5: =C17/C16 -> 0.4104903079 | D5: 0.33141542 | E5: 0.2665006227 | F5: 0.2835276968 | G5: 0.3210489015 | H5: 0.3295643499 | I5: 0.3393674573 | J5: 0.342901474 | K5: 0.35021449 | L5: 0.2751069164 | M5: 0.35 | N5: 0.35 | O5: 0.35 | P5: 0.35 | Q5: 0.35
B6: NPM % | C6: =C18/C10 -> 0.05022343112 | D6: =D18/D10 -> 0.05855674259 | E6: 0.06290718787 | F6: 0.06924973582 | G6: 0.0517846536 | H6: 0.05592872211 | I6: 0.07253992552 | J6: 0.07508698832 | K6: 0.08816491512 | L6: 0.1240770891 | M6: 0.05793080205 | N6: 0.06091207008 | O6: 0.06298044768 | P6: 0.06433388779 | Q6: 0.06563515727
B9: Narration | C9: ='Profit & Loss'!B3 -> 2009-03-31 | D9: ='Profit & Loss'!C3 -> 2010-03-31 | E9: ='Profit & Loss'!D3 -> 2011-03-31 | F9: ='Profit & Loss'!E3 -> 2012-03-31 | G9: ='Profit & Loss'!F3 -> 2013-03-31 | H9: ='Profit & Loss'!G3 -> 2014-03-31 | I9: ='Profit & Loss'!H3 -> 2015-03-31 | J9: ='Profit & Loss'!I3 -> 2016-03-31 | K9: ='Profit & Loss'!J3 -> 2017-03-31 | L9: ='Profit & Loss'!K3 -> 2018-03-31 | M9: =L9+365 -> 2019-03-31 | N9: =M9+365 -> 2020-03-30 | O9: 2021-03-30 | P9: 2022-03-30 | Q9: 2023-03-30 | S9: 5 Yr Cagr
B10: Sales | C10: ='Profit & Loss'!B4 -> 102.94 | D10: ='Profit & Loss'!C4 -> 99.22 | E10: ='Profit & Loss'!D4 -> 93.63 | F10: ='Profit & Loss'!E4 -> 141.95 | G10: ='Profit & Loss'!F4 -> 185.19 | H10: ='Profit & Loss'!G4 -> 360.28 | I10: ='Profit & Loss'!H4 -> 437.69 | J10: ='Profit & Loss'!I4 -> 451.21 | K10: ='Profit & Loss'!J4 -> 618.5 | L10: ='Profit & Loss'!K4 -> 792.33 | M10: =L10*(1+M2) -> 911.1795 | N10: =M10*(1+N2) -> 1047.856425 | O10: 1205.034889 | P10: 1385.790122 | Q10: 1593.65864 | S10: =RATE(5,,-L10,Q10,1,) -> 0.15
B11: Expenses | C11: ='Profit & Loss'!B5 -> 96.57 | D11: ='Profit & Loss'!C5 -> 92.81 | E11: ='Profit & Loss'!D5 -> 87.08 | F11: ='Profit & Loss'!E5 -> 125.26 | G11: ='Profit & Loss'!F5 -> 159.46 | H11: ='Profit & Loss'!G5 -> 296.52 | I11: ='Profit & Loss'!H5 -> 355.29 | J11: ='Profit & Loss'!I5 -> 370.04 | K11: ='Profit & Loss'!J5 -> 507.87 | L11: ='Profit & Loss'!K5 -> 638.92 | M11: =M10-M12 -> 810.949755 | N11: =N10-N12 -> 930.4965054 | O11: 1068.865946 | P11: 1227.810048 | Q11: 1410.387897 | S11: =RATE(5,,-L11,Q11,1,) -> 0.1715974503
B12: Operating Profit | C12: ='Profit & Loss'!B6 -> 6.37 | D12: ='Profit & Loss'!C6 -> 6.41 | E12: ='Profit & Loss'!D6 -> 6.55 | F12: ='Profit & Loss'!E6 -> 16.69 | G12: ='Profit & Loss'!F6 -> 25.73 | H12: ='Profit & Loss'!G6 -> 63.76 | I12: ='Profit & Loss'!H6 -> 82.4 | J12: ='Profit & Loss'!I6 -> 81.17 | K12: ='Profit & Loss'!J6 -> 110.63 | L12: ='Profit & Loss'!K6 -> 153.41 | M12: =M4*M10 -> 100.229745 | N12: =N4*N10 -> 117.3599196 | O12: 136.1689424 | P12: 157.9800739 | Q12: 183.2707436 | S12: 0.03621027503
B13: Other Income | C13: ='Profit & Loss'!B7 -> 4.12 | D13: ='Profit & Loss'!C7 -> 3.65 | E13: ='Profit & Loss'!D7 -> 3.56 | F13: ='Profit & Loss'!E7 -> -0.29 | G13: ='Profit & Loss'!F7 -> 0.18 | H13: ='Profit & Loss'!G7 -> 0.64 | I13: ='Profit & Loss'!H7 -> 0.86 | J13: ='Profit & Loss'!I7 -> 0.6 | K13: ='Profit & Loss'!J7 -> 1.96 | L13: ='Profit & Loss'!K7 -> 9.79 | M13: =L13*1.1 -> 10.769 | N13: =M13*1.1 -> 11.8459 | O13: 13.03049 | P13: 14.333539 | Q13: 15.7668929 | S13: 0.1
B14: Depreciation | C14: ='Profit & Loss'!B8 -> 0.93 | D14: ='Profit & Loss'!C8 -> 0.88 | E14: ='Profit & Loss'!D8 -> 1.81 | F14: ='Profit & Loss'!E8 -> 1.62 | G14: ='Profit & Loss'!F8 -> 6.88 | H14: ='Profit & Loss'!G8 -> 17.83 | I14: ='Profit & Loss'!H8 -> 17.73 | J14: ='Profit & Loss'!I8 -> 17.03 | K14: ='Profit & Loss'!J8 -> 16.43 | L14: ='Profit & Loss'!K8 -> 16.42 | M14: =L14*1.1 -> 18.062 | N14: 19.8682 | O14: 21.85502 | P14: 24.040522 | Q14: 26.4445742 | S14: 0.1
B15: Interest | C15: ='Profit & Loss'!B9 -> 0.83 | D15: ='Profit & Loss'!C9 -> 0.49 | E15: ='Profit & Loss'!D9 -> 0.27 | F15: ='Profit & Loss'!E9 -> 1.06 | G15: ='Profit & Loss'!F9 -> 4.96 | H15: ='Profit & Loss'!G9 -> 16.56 | I15: ='Profit & Loss'!H9 -> 17.5 | J15: ='Profit & Loss'!I9 -> 13.24 | K15: ='Profit & Loss'!J9 -> 12.45 | L15: ='Profit & Loss'!K9 -> 11.17 | M15: =L15*1.05 -> 11.7285 | N15: =M15*0.95 -> 11.142075 | O15: =N15*0.95 -> 10.58497125 | P15: =O15*1.05 -> 11.11421981 | Q15: 11.6699308 | S15: 0.00879523351
B16: Profit before tax | C16: ='Profit & Loss'!B10 -> 8.77 | D16: ='Profit & Loss'!C10 -> 8.69 | E16: ='Profit & Loss'!D10 -> 8.03 | F16: ='Profit & Loss'!E10 -> 13.72 | G16: ='Profit & Loss'!F10 -> 14.11 | H16: ='Profit & Loss'!G10 -> 30.07 | I16: ='Profit & Loss'!H10 -> 48.06 | J16: ='Profit & Loss'!I10 -> 51.56 | K16: ='Profit & Loss'!J10 -> 83.92 | L16: ='Profit & Loss'!K10 -> 135.62 | M16: =M12+M13-M14-M15 -> 81.208245 | N16: =N12+N13-N14-N15 -> 98.1955446 | O16: 116.7594412 | P16: 137.1588711 | Q16: 160.9231315 | S16: =RATE(5,,-L16,Q16,1,) -> 0.03480602115
B17: Tax | C17: ='Profit & Loss'!B11 -> 3.6 | D17: ='Profit & Loss'!C11 -> 2.88 | E17: ='Profit & Loss'!D11 -> 2.14 | F17: ='Profit & Loss'!E11 -> 3.89 | G17: ='Profit & Loss'!F11 -> 4.53 | H17: ='Profit & Loss'!G11 -> 9.91 | I17: ='Profit & Loss'!H11 -> 16.31 | J17: ='Profit & Loss'!I11 -> 17.68 | K17: ='Profit & Loss'!J11 -> 29.39 | L17: ='Profit & Loss'!K11 -> 37.31 | M17: =M16*M5 -> 28.42288575 | N17: =N16*N5 -> 34.36844061 | O17: 40.86580441 | P17: 48.00560489 | Q17: 56.32309604 | S17: 0.08585604674
B18: Net profit | C18: ='Profit & Loss'!B12 -> 5.17 | D18: ='Profit & Loss'!C12 -> 5.81 | E18: ='Profit & Loss'!D12 -> 5.89 | F18: ='Profit & Loss'!E12 -> 9.83 | G18: ='Profit & Loss'!F12 -> 9.59 | H18: ='Profit & Loss'!G12 -> 20.15 | I18: ='Profit & Loss'!H12 -> 31.75 | J18: ='Profit & Loss'!I12 -> 33.88 | K18: ='Profit & Loss'!J12 -> 54.53 | L18: ='Profit & Loss'!K12 -> 98.31 | M18: =M16-M17 -> 52.78535925 | N18: =N16-N17 -> 63.82710399 | O18: 75.89363677 | P18: 89.15326622 | Q18: 104.6000355 | S18: 0.01248087196
B19: EPS | C19: ='Profit & Loss'!B13 -> 12.16831343 | D19: ='Profit & Loss'!C13 -> 13.67464236 | E19: ='Profit & Loss'!D13 -> 13.86293348 | F19: ='Profit & Loss'!E13 -> 23.13627099 | G19: ='Profit & Loss'!F13 -> 22.57139764 | H19: ='Profit & Loss'!G13 -> 47.42582507 | I19: ='Profit & Loss'!H13 -> 74.72803702 | J19: ='Profit & Loss'!I13 -> 79.74128801 | K19: ='Profit & Loss'!J13 -> 128.3439326 | L19: ='Profit & Loss'!K13 -> 231.3862463 | M19: =M18/$M$23 -> 124.2006675 | N19: =N18/$M$23 -> 150.1812061 | O19: 178.5730073 | P19: 209.7720907 | Q19: 246.1173782 | S19: 0.01242054076
B20: Price to earning | C20: ='Profit & Loss'!B14 -> 3.890693832 | D20: ='Profit & Loss'!C14 -> 6.05427168 | E20: ='Profit & Loss'!D14 -> 6.454036234 | F20: ='Profit & Loss'!E14 -> 5.747790215 | G20: ='Profit & Loss'!F14 -> 5.704121741 | H20: ='Profit & Loss'!G14 -> 6.842883841 | I20: ='Profit & Loss'!H14 -> 11.71344163 | J20: ='Profit & Loss'!I14 -> 12.14425686 | K20: ='Profit & Loss'!J14 -> 23.33000411 | L20: ='Profit & Loss'!K14 -> 21.66817064 | M20: =M21/M19 -> 33.07792208 | N20: 20 | O20: 20 | P20: 20 | Q20: 20
B21: Price | C21: ='Profit & Loss'!B15 -> 47.343182 | D21: ='Profit & Loss'!C15 -> 82.79 | E21: ='Profit & Loss'!D15 -> 89.471875 | F21: ='Profit & Loss'!E15 -> 132.982432 | G21: ='Profit & Loss'!F15 -> 128.75 | H21: ='Profit & Loss'!G15 -> 324.529412 | I21: ='Profit & Loss'!H15 -> 875.3225 | J21: ='Profit & Loss'!I15 -> 968.398684 | K21: ='Profit & Loss'!J15 -> 2994.264474 | L21: ='Profit & Loss'!K15 -> 5013.716667 | M21: ='Profit & Loss'!L15 -> 4108.3 | N21: =N20*N19 -> 3003.624122 | O21: =O20*O19 -> 3571.460146 | P21: 4195.441815 | Q21: 4922.347564 | S21: -0.003671628214
L23: Nosh | M23: ='Data Sheet'!B6 -> 0.4250006085
B24: Quarterly
B25: QoQ Sales | D25: =D29/C29-1 -> 0.01813292355 | E25: =E29/D29-1 -> 0.2765074334 | F25: 0.4428613657 | G25: -0.2269933623 | H25: 0.02533658433 | I25: 0.2671629446 | J25: 0.1637973238 | K25: -0.3355067129 | L25: 0.4361152142 | M25: 0.3
B26: Tax % | D26: =D36/D35 -> 0.3830871116 | E26: =E36/E35 -> 0.3416175232 | F26: 0.3693033002 | G26: 0.3470022624 | H26: 0.07379400261 | I26: 0.2998878924 | J26: 0.2991971803 | K26: 0.3074927019 | L26: 0.2169861555 | M26: =MEDIAN(I26:L26) -> 0.2995425364
B27: Quarterly | C27: Contribution | D27: =D29/$K$10 -> 0.214244139 | E27: =E29/$K$10 -> 0.2734842361 | F27: 0.3945998383 | G27: 0.3050282943 | H27: =H29/$L$10 -> 0.244140699 | I27: =I29/$L$10 -> 0.309366047 | J27: 0.3600393775 | K27: 0.2392437494
B28: Narration | C28: =Quarters!B3 -> 2016-12-31 | D28: =Quarters!C3 -> 2017-03-31 | E28: =Quarters!D3 -> 2017-06-30 | F28: =Quarters!E3 -> 2017-09-30 | G28: =Quarters!F3 -> 2017-12-31 | H28: =Quarters!G3 -> 2018-03-31 | I28: =Quarters!H3 -> 2018-06-30 | J28: =Quarters!I3 -> 2018-09-30 | K28: =Quarters!J3 -> 2018-12-31 | L28: =Quarters!K3 -> 2019-03-31 | M28: =L28+90 -> 2019-06-29 | N28: YoY | O28: QoQ
B29: Sales | C29: =Quarters!B4 -> 130.15 | D29: =Quarters!C4 -> 132.51 | E29: =Quarters!D4 -> 169.15 | F29: =Quarters!E4 -> 244.06 | G29: =Quarters!F4 -> 188.66 | H29: =Quarters!G4 -> 193.44 | I29: =Quarters!H4 -> 245.12 | J29: =Quarters!I4 -> 285.27 | K29: =Quarters!J4 -> 189.56 | L29: =Quarters!K4 -> 272.23 | M29: =L29*(1+M25) -> 353.899 | N29: =L29/H29-1 -> 0.4073097601 | O29: =L29/K29-1 -> 0.4361152142
B30: Expenses | C30: =Quarters!B5 -> 107.56 | D30: =Quarters!C5 -> 101.01 | E30: =Quarters!D5 -> 139.41 | F30: =Quarters!E5 -> 198.74 | G30: =Quarters!F5 -> 143.77 | H30: =Quarters!G5 -> 155.2 | I30: =Quarters!H5 -> 204.1 | J30: =Quarters!I5 -> 226.5 | K30: =Quarters!J5 -> 150.13 | L30: =Quarters!K5 -> 224.35 | M30: =M29-M31 -> 280.2851702 | N30: =L30/H30-1 -> 0.4455541237 | O30: =L30/K30-1 -> 0.4943715447
B31: Operating Profit | C31: =Quarters!B6 -> 22.59 | D31: =Quarters!C6 -> 31.5 | E31: =Quarters!D6 -> 29.74 | F31: =Quarters!E6 -> 45.32 | G31: =Quarters!F6 -> 44.89 | H31: =Quarters!G6 -> 38.24 | I31: =Quarters!H6 -> 41.02 | J31: =Quarters!I6 -> 58.77 | K31: =Quarters!J6 -> 39.43 | L31: =Quarters!K6 -> 47.88 | M31: =M29*M39 -> 73.61382976 | N31: 0.2520920502 | O31: 0.2143038296
B32: Other Income | C32: =Quarters!B7 -> 2.5 | D32: =Quarters!C7 -> -5.12 | E32: =Quarters!D7 -> 0.68 | F32: =Quarters!E7 -> -0.18 | G32: =Quarters!F7 -> -2.62 | H32: =Quarters!G7 -> 6.62 | I32: =Quarters!H7 -> 1.78 | J32: =Quarters!I7 -> 0.56 | K32: =Quarters!J7 -> -0.12 | L32: =Quarters!K7 -> -1.47 | M32: =AVERAGE(I32:L32) -> 0.1875 | N32: -1.222054381 | O32: 11.25
B33: Depreciation | C33: =Quarters!B8 -> 4.1 | D33: =Quarters!C8 -> 4.29 | E33: =Quarters!D8 -> 3.88 | F33: =Quarters!E8 -> 4.03 | G33: =Quarters!F8 -> 4.18 | H33: =Quarters!G8 -> 4.33 | I33: =Quarters!H8 -> 4.03 | J33: =Quarters!I8 -> 4.25 | K33: =Quarters!J8 -> 4.35 | L33: =Quarters!K8 -> 4.26 | M33: =I33*1.32 -> 5.3196 | N33: -0.01616628176 | O33: -0.02068965517
B34: Interest | C34: =Quarters!B9 -> 3.99 | D34: =Quarters!C9 -> 2.46 | E34: =Quarters!D9 -> 2.8 | F34: =Quarters!E9 -> 2.93 | G34: =Quarters!F9 -> 2.73 | H34: =Quarters!G9 -> 2.18 | I34: =Quarters!H9 -> 3.09 | J34: =Quarters!I9 -> 4.01 | K34: =Quarters!J9 -> 4.13 | L34: =Quarters!K9 -> 4.59 | M34: 8 | N34: 1.105504587 | O34: 0.1113801453
B35: Profit before tax | C35: =Quarters!B10 -> 17 | D35: =Quarters!C10 -> 19.63 | E35: =Quarters!D10 -> 23.74 | F35: =Quarters!E10 -> 38.18 | G35: =Quarters!F10 -> 35.36 | H35: =Quarters!G10 -> 38.35 | I35: =Quarters!H10 -> 35.68 | J35: =Quarters!I10 -> 51.07 | K35: =Quarters!J10 -> 30.83 | L35: =Quarters!K10 -> 37.56 | M35: =M31+M32-M33-M34 -> 60.48172976 | N35: -0.02059973924 | O35: 0.2182938696
B36: Tax | C36: =Quarters!B11 -> 5.76 | D36: =Quarters!C11 -> 7.52 | E36: =Quarters!D11 -> 8.11 | F36: =Quarters!E11 -> 14.1 | G36: =Quarters!F11 -> 12.27 | H36: =Quarters!G11 -> 2.83 | I36: =Quarters!H11 -> 10.7 | J36: =Quarters!I11 -> 15.28 | K36: =Quarters!J11 -> 9.48 | L36: =Quarters!K11 -> 8.15 | M36: =M26*M35 -> 18.11685074 | N36: 1.879858657 | O36: -0.1402953586
B37: Net profit | C37: =Quarters!B12 -> 11.24 | D37: =Quarters!C12 -> 12.11 | E37: =Quarters!D12 -> 15.63 | F37: =Quarters!E12 -> 24.08 | G37: =Quarters!F12 -> 23.09 | H37: =Quarters!G12 -> 35.52 | I37: =Quarters!H12 -> 24.98 | J37: =Quarters!I12 -> 35.79 | K37: =Quarters!J12 -> 21.35 | L37: =Quarters!K12 -> 29.41 | M37: =M35-M36 -> 42.36487903 | N37: -0.1720157658 | O37: 0.3775175644
C38: =Quarters!B13 -> 0 | D38: =Quarters!C13 -> 0 | E38: =Quarters!D13 -> 0 | F38: =Quarters!E13 -> 0 | G38: =Quarters!F13 -> 0 | H38: =Quarters!G13 -> 0 | I38: =Quarters!H13 -> 0 | J38: =Quarters!I13 -> 0 | K38: =Quarters!J13 -> 0 | L38: =Quarters!K13 -> 0
B39: OPM | C39: =Quarters!B14 -> 0.1735689589 | D39: =Quarters!C14 -> 0.2377179081 | E39: =Quarters!D14 -> 0.1758202779 | F39: =Quarters!E14 -> 0.1856920429 | G39: =Quarters!F14 -> 0.23794127 | H39: =Quarters!G14 -> 0.1976840364 | I39: =Quarters!H14 -> 0.1673466057 | J39: =Quarters!I14 -> 0.2060153539 | K39: =Quarters!J14 -> 0.2080080186 | L39: =Quarters!K14 -> 0.1758806891 | M39: =K39 -> 0.2080080186 | N39: -0.1102939199 | O39: -0.1544523604
